Workbook

Sheet الرئيسية

Sheet البحث
N1: ادخل اسم العميل او عنوانه او البيان الخاص به : | O1: صفحة البحث | P1: القسط يدوى | S1: قيمة كل الاقساط | T1: كل الباقى
B2: جدول بعد خصم القسط | N2: محمد احم | S2: =SUM(P4:P101) -> 150 | T2: =SUM(T4:T101) -> 3800
A3: الرقم | B3: العـمــيل | C3: البــــــــــــــــيان | D3: القسط | E3: تاريخ اليوم | F3: المسدد | G3: تاريخ الاستحقاق | H3: تم السداد | I3: الباقى | J3: ترقيم الصفوف | K3: ايجاد الصفوف | L3: الترحيل | M3: الرقم | N3: الــــــــــعـــــــــــــــمـــــــــــــــــــــــيل | O3: البـــــــــــــــــــــــــــــــــــــــــــــــــــــــــــيان | P3: القسط | Q3: تاريخ السداد | R3: المسدد | S3: تاريخ الاستحقاق | T3: الباقى | U3: سداد | V3: الحالة | W3: منذ
A4: =$M4 -> 2 | B4: =N4 -> محمد احمد توفيق | C4: =O4 -> بوتجاز تليستار+تلفزيون | D4: =IF(T4=0,0,IF($A4="","",IF($P$2="",VLOOKUP($M4,العملاء!$A$4:$Q$9274,10,0),$P$2))) -> 0 | E4: =IF(A4="","",NOW()) -> 43475.65535 | F4: =IF(A4="","",R4+1) -> 3 | G4: =IFERROR(EDATE(VLOOKUP(A4,العملاء!$A$4:$E$49274,5,0),F4),"") -> 42984 | H4: =IF(A4="","",U4+D4) -> 0 | I4: =IF(T4=0,"خالص",IF(A4="","",T4-D4)) -> 2000 | J4: =ROWS(العملاء!$B$4:B4) -> 1 | K4: =IF(IFERROR(ISNUMBER(SEARCH(البحث!$N$2,العملاء!$B4&" "&العملاء!$C4&" "&العملاء!$D4&" "&العملاء!$L4)),""),J4,"") ->  | M4: =IF(البحث!$N$2="","",IFERROR(SMALL($K$4:$K9749,J4),"")) -> 2 | N4: =IFERROR(VLOOKUP($M4,العملاء!$A$4:$Q$9274,2,0),"") -> محمد احمد توفيق | O4: =IFERROR(VLOOKUP($M4,العملاء!$A$4:$Q$9274,4,0),"") -> بوتجاز تليستار+تلفزيون | P4: =IF(M4="","",IF(T4=0,"خالص",IFERROR(VLOOKUP($M4,العملاء!$A$4:$Q$9274,10,0),""))) -> 0 | Q4: =IFERROR(VLOOKUP($M4,العملاء!$A$4:$S$9274,14,0),"") -> 2018-10-10T18:29:38.710 | R4: =IFERROR(VLOOKUP($M4,العملاء!$A$3:$S$4274,18,0),"") -> 2 | S4: =IFERROR(VLOOKUP($M4,العملاء!$A$4:$S$9274,15,0),"") -> 2017-08-06 | T4: =IFERROR(VLOOKUP($M4,العملاء!$A$3:$S$4274,16,0),"") -> 2000 | U4: =IFERROR(VLOOKUP($M4,العملاء!$A$3:$S$4274,17,0),"") -> 0 | V4: =IF($T4=0,"خالص",IFERROR(VLOOKUP($M4,العملاء!$A$3:$N$4274,13,0),"")) -> متاخر جدا | W4: =IF($T4=0," خالص",IFERROR(VLOOKUP($M4,العملاء!$A$3:$S$4274,19,0),"")) -> 91.22941308
A5: =$M5 -> 6 | B5: محمد احمد توفيق | C5: تليفون | D5: =IF(T5=0,0,IF($A5="","",IF($P$2="",VLOOKUP($M5,العملاء!$A$4:$Q$9274,10,0),$P$2))) -> 150 | E5: =IF(A5="","",NOW()) -> 43475.65535 | F5: 1 | G5: =IFERROR(EDATE(VLOOKUP(A5,العملاء!$A$4:$E$49274,5,0),F5),"") -> 43315 | H5: 150 | I5: 1650 | J5: =ROWS(العملاء!$B$4:B5) -> 2 | K5: =IF(IFERROR(ISNUMBER(SEARCH(البحث!$N$2,العملاء!$B5&" "&العملاء!$C5&" "&العملاء!$D5&" "&العملاء!$L5)),""),J5,"") -> 2 | M5: =IF(البحث!$N$2="","",IFERROR(SMALL($K$4:$K9750,J5),"")) -> 6 | N5: =IFERROR(VLOOKUP($M5,العملاء!$A$4:$Q$9274,2,0),"") -> محمد احمد توفيق | O5: =IFERROR(VLOOKUP($M5,العملاء!$A$4:$Q$9274,4,0),"") -> تليفون | P5: =IF(M5="","",IF(T5=0,"خالص",IFERROR(VLOOKUP($M5,العملاء!$A$4:$Q$9274,10,0),""))) -> 150 | Q5: =IFERROR(VLOOKUP($M5,العملاء!$A$4:$S$9274,14,0),"") -> 2018-07-03 | R5: =IFERROR(VLOOKUP($M5,العملاء!$A$3:$S$4274,18,0),"") -> 0 | S5: =IFERROR(VLOOKUP($M5,العملاء!$A$4:$S$9274,15,0),"") -> 2018-07-03 | T5: =IFERROR(VLOOKUP($M5,العملاء!$A$3:$S$4274,16,0),"") -> 1800 | U5: =IFERROR(VLOOKUP($M5,العملاء!$A$3:$S$4274,17,0),"") -> 0 | V5: =IF($T5=0,"خالص",IFERROR(VLOOKUP($M5,العملاء!$A$3:$N$4274,13,0),"")) -> يقدم للشكوى | W5: =IF($T5=0," خالص",IFERROR(VLOOKUP($M5,العملاء!$A$3:$S$4274,19,0),"")) -> 191
D6: =IF(T6=0,0,IF($A6="","",IF($P$2="",VLOOKUP($M6,العملاء!$A$4:$Q$9274,10,0),$P$2))) ->  | G6: =IFERROR(EDATE(VLOOKUP(A6,العملاء!$A$4:$E$49274,5,0),F6),"") ->  | J6: =ROWS(العملاء!$B$4:B6) -> 3 | K6: =IF(IFERROR(ISNUMBER(SEARCH(البحث!$N$2,العملاء!$B6&" "&العملاء!$C6&" "&العملاء!$D6&" "&العملاء!$L6)),""),J6,"") ->  | M6: =IF(البحث!$N$2="","",IFERROR(SMALL($K$4:$K9751,J6),"")) ->  | N6: =IFERROR(VLOOKUP($M6,العملاء!$A$4:$Q$9274,2,0),"") ->  | O6: =IFERROR(VLOOKUP($M6,العملاء!$A$4:$Q$9274,4,0),"") ->  | P6: =IF(M6="","",IF(T6=0,"خالص",IFERROR(VLOOKUP($M6,العملاء!$A$4:$Q$9274,10,0),""))) ->  | Q6: =IFERROR(VLOOKUP($M6,العملاء!$A$4:$S$9274,14,0),"") ->  | R6: =IFERROR(VLOOKUP($M6,العملاء!$A$3:$S$4274,18,0),"") ->  | S6: =IFERROR(VLOOKUP($M6,العملاء!$A$4:$S$9274,15,0),"") ->  | T6: =IFERROR(VLOOKUP($M6,العملاء!$A$3:$S$4274,16,0),"") ->  | U6: =IFERROR(VLOOKUP($M6,العملاء!$A$3:$S$4274,17,0),"") ->  | V6: =IF($T6=0,"خالص",IFERROR(VLOOKUP($M6,العملاء!$A$3:$N$4274,13,0),"")) ->  | W6: =IF($T6=0," خالص",IFERROR(VLOOKUP($M6,العملاء!$A$3:$S$4274,19,0),"")) -> 
D7: =IF(T7=0,0,IF($A7="","",IF($P$2="",VLOOKUP($M7,العملاء!$A$4:$Q$9274,10,0),$P$2))) ->  | G7: =IFERROR(EDATE(VLOOKUP(A7,العملاء!$A$4:$E$49274,5,0),F7),"") ->  | J7: =ROWS(العملاء!$B$4:B7) -> 4 | K7: =IF(IFERROR(ISNUMBER(SEARCH(البحث!$N$2,العملاء!$B7&" "&العملاء!$C7&" "&العملاء!$D7&" "&العملاء!$L7)),""),J7,"") ->  | M7: =IF(البحث!$N$2="","",IFERROR(SMALL($K$4:$K9752,J7),"")) ->  | N7: =IFERROR(VLOOKUP($M7,العملاء!$A$4:$Q$9274,2,0),"") ->  | O7: =IFERROR(VLOOKUP($M7,العملاء!$A$4:$Q$9274,4,0),"") ->  | P7: =IF(M7="","",IF(T7=0,"خالص",IFERROR(VLOOKUP($M7,العملاء!$A$4:$Q$9274,10,0),""))) ->  | Q7: =IFERROR(VLOOKUP($M7,العملاء!$A$4:$S$9274,14,0),"") ->  | R7: =IFERROR(VLOOKUP($M7,العملاء!$A$3:$S$4274,18,0),"") ->  | S7: =IFERROR(VLOOKUP($M7,العملاء!$A$4:$S$9274,15,0),"") ->  | T7: =IFERROR(VLOOKUP($M7,العملاء!$A$3:$S$4274,16,0),"") ->  | U7: =IFERROR(VLOOKUP($M7,العملاء!$A$3:$S$4274,17,0),"") ->  | V7: =IF($T7=0,"خالص",IFERROR(VLOOKUP($M7,العملاء!$A$3:$N$4274,13,0),"")) ->  | W7: =IF($T7=0," خالص",IFERROR(VLOOKUP($M7,العملاء!$A$3:$S$4274,19,0),"")) -> 
D8: =IF(T8=0,0,IF($A8="","",IF($P$2="",VLOOKUP($M8,العملاء!$A$4:$Q$9274,10,0),$P$2))) ->  | G8: =IFERROR(EDATE(VLOOKUP(A8,العملاء!$A$4:$E$49274,5,0),F8),"") ->  | J8: =ROWS(العملاء!$B$4:B8) -> 5 | K8: =IF(IFERROR(ISNUMBER(SEARCH(البحث!$N$2,العملاء!$B8&" "&العملاء!$C8&" "&العملاء!$D8&" "&العملاء!$L8)),""),J8,"") ->  | M8: =IF(البحث!$N$2="","",IFERROR(SMALL($K$4:$K9753,J8),"")) ->  | N8: =IFERROR(VLOOKUP($M8,العملاء!$A$4:$Q$9274,2,0),"") ->  | O8: =IFERROR(VLOOKUP($M8,العملاء!$A$4:$Q$9274,4,0),"") ->  | P8: =IF(M8="","",IF(T8=0,"خالص",IFERROR(VLOOKUP($M8,العملاء!$A$4:$Q$9274,10,0),""))) ->  | Q8: =IFERROR(VLOOKUP($M8,العملاء!$A$4:$S$9274,14,0),"") ->  | R8: =IFERROR(VLOOKUP($M8,العملاء!$A$3:$S$4274,18,0),"") ->  | S8: =IFERROR(VLOOKUP($M8,العملاء!$A$4:$S$9274,15,0),"") ->  | T8: =IFERROR(VLOOKUP($M8,العملاء!$A$3:$S$4274,16,0),"") ->  | U8: =IFERROR(VLOOKUP($M8,العملاء!$A$3:$S$4274,17,0),"") ->  | V8: =IF($T8=0,"خالص",IFERROR(VLOOKUP($M8,العملاء!$A$3:$N$4274,13,0),"")) ->  | W8: =IF($T8=0," خالص",IFERROR(VLOOKUP($M8,العملاء!$A$3:$S$4274,19,0),"")) -> 
D9: =IF(T9=0,0,IF($A9="","",IF($P$2="",VLOOKUP($M9,العملاء!$A$4:$Q$9274,10,0),$P$2))) ->  | G9: =IFERROR(EDATE(VLOOKUP(A9,العملاء!$A$4:$E$49274,5,0),F9),"") ->  | J9: =ROWS(العملاء!$B$4:B9) -> 6 | K9: =IF(IFERROR(ISNUMBER(SEARCH(البحث!$N$2,العملاء!$B9&" "&العملاء!$C9&" "&العملاء!$D9&" "&العملاء!$L9)),""),J9,"") -> 6 | M9: =IF(البحث!$N$2="","",IFERROR(SMALL($K$4:$K9754,J9),"")) ->  | N9: =IFERROR(VLOOKUP($M9,العملاء!$A$4:$Q$9274,2,0),"") ->  | O9: =IFERROR(VLOOKUP($M9,العملاء!$A$4:$Q$9274,4,0),"") ->  | P9: =IF(M9="","",IF(T9=0,"خالص",IFERROR(VLOOKUP($M9,العملاء!$A$4:$Q$9274,10,0),""))) ->  | Q9: =IFERROR(VLOOKUP($M9,العملاء!$A$4:$S$9274,14,0),"") ->  | R9: =IFERROR(VLOOKUP($M9,العملاء!$A$3:$S$4274,18,0),"") ->  | S9: =IFERROR(VLOOKUP($M9,العملاء!$A$4:$S$9274,15,0),"") ->  | T9: =IFERROR(VLOOKUP($M9,العملاء!$A$3:$S$4274,16,0),"") ->  | U9: =IFERROR(VLOOKUP($M9,العملاء!$A$3:$S$4274,17,0),"") ->  | V9: =IF($T9=0,"خالص",IFERROR(VLOOKUP($M9,العملاء!$A$3:$N$4274,13,0),"")) ->  | W9: =IF($T9=0," خالص",IFERROR(VLOOKUP($M9,العملاء!$A$3:$S$4274,19,0),"")) -> 
D10: =IF(T10=0,0,IF($A10="","",IF($P$2="",VLOOKUP($M10,العملاء!$A$4:$Q$9274,10,0),$P$2))) ->  | G10: =IFERROR(EDATE(VLOOKUP(A10,العملاء!$A$4:$E$49274,5,0),F10),"") ->  | J10: =ROWS(العملاء!$B$4:B10) -> 7 | K10: =IF(IFERROR(ISNUMBER(SEARCH(البحث!$N$2,العملاء!$B10&" "&العملاء!$C10&" "&العملاء!$D10&" "&العملاء!$L10)),""),J10,"") ->  | M10: =IF(البحث!$N$2="","",IFERROR(SMALL($K$4:$K9755,J10),"")) ->  | N10: =IFERROR(VLOOKUP($M10,العملاء!$A$4:$Q$9274,2,0),"") ->  | O10: =IFERROR(VLOOKUP($M10,العملاء!$A$4:$Q$9274,4,0),"") ->  | P10: =IF(M10="","",IF(T10=0,"خالص",IFERROR(VLOOKUP($M10,العملاء!$A$4:$Q$9274,10,0),""))) ->  | Q10: =IFERROR(VLOOKUP($M10,العملاء!$A$4:$S$9274,14,0),"") ->  | R10: =IFERROR(VLOOKUP($M10,العملاء!$A$3:$S$4274,18,0),"") ->  | S10: =IFERROR(VLOOKUP($M10,العملاء!$A$4:$S$9274,15,0),"") ->  | T10: =IFERROR(VLOOKUP($M10,العملاء!$A$3:$S$4274,16,0),"") ->  | U10: =IFERROR(VLOOKUP($M10,العملاء!$A$3:$S$4274,17,0),"") ->  | V10: =IF($T10=0,"خالص",IFERROR(VLOOKUP($M10,العملاء!$A$3:$N$4274,13,0),"")) ->  | W10: =IF($T10=0," خالص",IFERROR(VLOOKUP($M10,العملاء!$A$3:$S$4274,19,0),"")) -> 
D11: =IF(T11=0,0,IF($A11="","",IF($P$2="",VLOOKUP($M11,العملاء!$A$4:$Q$9274,10,0),$P$2))) ->  | G11: =IFERROR(EDATE(VLOOKUP(A11,العملاء!$A$4:$E$49274,5,0),F11),"") ->  | J11: =ROWS(العملاء!$B$4:B11) -> 8 | K11: =IF(IFERROR(ISNUMBER(SEARCH(البحث!$N$2,العملاء!$B11&" "&العملاء!$C11&" "&العملاء!$D11&" "&العملاء!$L11)),""),J11,"") ->  | M11: =IF(البحث!$N$2="","",IFERROR(SMALL($K$4:$K9756,J11),"")) ->  | N11: =IFERROR(VLOOKUP($M11,العملاء!$A$4:$Q$9274,2,0),"") ->  | O11: =IFERROR(VLOOKUP($M11,العملاء!$A$4:$Q$9274,4,0),"") ->  | P11: =IF(M11="","",IF(T11=0,"خالص",IFERROR(VLOOKUP($M11,العملاء!$A$4:$Q$9274,10,0),""))) ->  | Q11: =IFERROR(VLOOKUP($M11,العملاء!$A$4:$S$9274,14,0),"") ->  | R11: =IFERROR(VLOOKUP($M11,العملاء!$A$3:$S$4274,18,0),"") ->  | S11: =IFERROR(VLOOKUP($M11,العملاء!$A$4:$S$9274,15,0),"") ->  | T11: =IFERROR(VLOOKUP($M11,العملاء!$A$3:$S$4274,16,0),"") ->  | U11: =IFERROR(VLOOKUP($M11,العملاء!$A$3:$S$4274,17,0),"") ->  | V11: =IF($T11=0,"خالص",IFERROR(VLOOKUP($M11,العملاء!$A$3:$N$4274,13,0),"")) ->  | W11: =IF($T11=0," خالص",IFERROR(VLOOKUP($M11,العملاء!$A$3:$S$4274,19,0),"")) -> 
D12: =IF(T12=0,0,IF($A12="","",IF($P$2="",VLOOKUP($M12,العملاء!$A$4:$Q$9274,10,0),$P$2))) ->  | G12: =IFERROR(EDATE(VLOOKUP(A12,العملاء!$A$4:$E$49274,5,0),F12),"") ->  | J12: =ROWS(العملاء!$B$4:B12) -> 9 | K12: =IF(IFERROR(ISNUMBER(SEARCH(البحث!$N$2,العملاء!$B12&" "&العملاء!$C12&" "&العملاء!$D12&" "&العملاء!$L12)),""),J12,"") ->  | M12: =IF(البحث!$N$2="","",IFERROR(SMALL($K$4:$K9757,J12),"")) ->  | N12: =IFERROR(VLOOKUP($M12,العملاء!$A$4:$Q$9274,2,0),"") ->  | O12: =IFERROR(VLOOKUP($M12,العملاء!$A$4:$Q$9274,4,0),"") ->  | P12: =IF(M12="","",IF(T12=0,"خالص",IFERROR(VLOOKUP($M12,العملاء!$A$4:$Q$9274,10,0),""))) ->  | Q12: =IFERROR(VLOOKUP($M12,العملاء!$A$4:$S$9274,14,0),"") ->  | R12: =IFERROR(VLOOKUP($M12,العملاء!$A$3:$S$4274,18,0),"") ->  | S12: =IFERROR(VLOOKUP($M12,العملاء!$A$4:$S$9274,15,0),"") ->  | T12: =IFERROR(VLOOKUP($M12,العملاء!$A$3:$S$4274,16,0),"") ->  | U12: =IFERROR(VLOOKUP($M12,العملاء!$A$3:$S$4274,17,0),"") ->  | V12: =IF($T12=0,"خالص",IFERROR(VLOOKUP($M12,العملاء!$A$3:$N$4274,13,0),"")) ->  | W12: =IF($T12=0," خالص",IFERROR(VLOOKUP($M12,العملاء!$A$3:$S$4274,19,0),"")) -> 
D13: =IF(T13=0,0,IF($A13="","",IF($P$2="",VLOOKUP($M13,العملاء!$A$4:$Q$9274,10,0),$P$2))) ->  | G13: =IFERROR(EDATE(VLOOKUP(A13,العملاء!$A$4:$E$49274,5,0),F13),"") ->  | J13: =ROWS(العملاء!$B$4:B13) -> 10 | K13: =IF(IFERROR(ISNUMBER(SEARCH(البحث!$N$2,العملاء!$B13&" "&العملاء!$C13&" "&العملاء!$D13&" "&العملاء!$L13)),""),J13,"") ->  | M13: =IF(البحث!$N$2="","",IFERROR(SMALL($K$4:$K9758,J13),"")) ->  | N13: =IFERROR(VLOOKUP($M13,العملاء!$A$4:$Q$9274,2,0),"") ->  | O13: =IFERROR(VLOOKUP($M13,العملاء!$A$4:$Q$9274,4,0),"") ->  | P13: =IF(M13="","",IF(T13=0,"خالص",IFERROR(VLOOKUP($M13,العملاء!$A$4:$Q$9274,10,0),""))) ->  | Q13: =IFERROR(VLOOKUP($M13,العملاء!$A$4:$S$9274,14,0),"") ->  | R13: =IFERROR(VLOOKUP($M13,العملاء!$A$3:$S$4274,18,0),"") ->  | S13: =IFERROR(VLOOKUP($M13,العملاء!$A$4:$S$9274,15,0),"") ->  | T13: =IFERROR(VLOOKUP($M13,العملاء!$A$3:$S$4274,16,0),"") ->  | U13: =IFERROR(VLOOKUP($M13,العملاء!$A$3:$S$4274,17,0),"") ->  | V13: =IF($T13=0,"خالص",IFERROR(VLOOKUP($M13,العملاء!$A$3:$N$4274,13,0),"")) ->  | W13: =IF($T13=0," خالص",IFERROR(VLOOKUP($M13,العملاء!$A$3:$S$4274,19,0),"")) -> 
D14: =IF(T14=0,0,IF($A14="","",IF($P$2="",VLOOKUP($M14,العملاء!$A$4:$Q$9274,10,0),$P$2))) ->  | G14: =IFERROR(EDATE(VLOOKUP(A14,العملاء!$A$4:$E$49274,5,0),F14),"") ->  | J14: =ROWS(العملاء!$B$4:B14) -> 11 | K14: =IF(IFERROR(ISNUMBER(SEARCH(البحث!$N$2,العملاء!$B14&" "&العملاء!$C14&" "&العملاء!$D14&" "&العملاء!$L14)),""),J14,"") ->  | M14: =IF(البحث!$N$2="","",IFERROR(SMALL($K$4:$K9759,J14),"")) ->  | N14: =IFERROR(VLOOKUP($M14,العملاء!$A$4:$Q$9274,2,0),"") ->  | O14: =IFERROR(VLOOKUP($M14,العملاء!$A$4:$Q$9274,4,0),"") ->  | P14: =IF(M14="","",IF(T14=0,"خالص",IFERROR(VLOOKUP($M14,العملاء!$A$4:$Q$9274,10,0),""))) ->  | Q14: =IFERROR(VLOOKUP($M14,العملاء!$A$4:$S$9274,14,0),"") ->  | R14: =IFERROR(VLOOKUP($M14,العملاء!$A$3:$S$4274,18,0),"") ->  | S14: =IFERROR(VLOOKUP($M14,العملاء!$A$4:$S$9274,15,0),"") ->  | T14: =IFERROR(VLOOKUP($M14,العملاء!$A$3:$S$4274,16,0),"") ->  | U14: =IFERROR(VLOOKUP($M14,العملاء!$A$3:$S$4274,17,0),"") ->  | V14: =IF($T14=0,"خالص",IFERROR(VLOOKUP($M14,العملاء!$A$3:$N$4274,13,0),"")) ->  | W14: =IF($T14=0," خالص",IFERROR(VLOOKUP($M14,العملاء!$A$3:$S$4274,19,0),"")) -> 
A15: =$M15 ->  | D15: =IF(T15=0,0,IF($A15="","",IF($P$2="",VLOOKUP($M15,العملاء!$A$4:$Q$9274,10,0),$P$2))) ->  | E15: =IF(A15="","",NOW()) ->  | G15: =IFERROR(EDATE(VLOOKUP(A15,العملاء!$A$4:$E$49274,5,0),F15),"") ->  | J15: =ROWS(العملاء!$B$4:B15) -> 12 | K15: =IF(IFERROR(ISNUMBER(SEARCH(البحث!$N$2,العملاء!$B15&" "&العملاء!$C15&" "&العملاء!$D15&" "&العملاء!$L15)),""),J15,"") ->  | M15: =IF(البحث!$N$2="","",IFERROR(SMALL($K$4:$K9760,J15),"")) ->  | N15: =IFERROR(VLOOKUP($M15,العملاء!$A$4:$Q$9274,2,0),"") ->  | O15: =IFERROR(VLOOKUP($M15,العملاء!$A$4:$Q$9274,4,0),"") ->  | P15: =IF(M15="","",IF(T15=0,"خالص",IFERROR(VLOOKUP($M15,العملاء!$A$4:$Q$9274,10,0),""))) ->  | Q15: =IFERROR(VLOOKUP($M15,العملاء!$A$4:$S$9274,14,0),"") ->  | R15: =IFERROR(VLOOKUP($M15,العملاء!$A$3:$S$4274,18,0),"") ->  | S15: =IFERROR(VLOOKUP($M15,العملاء!$A$4:$S$9274,15,0),"") ->  | T15: =IFERROR(VLOOKUP($M15,العملاء!$A$3:$S$4274,16,0),"") ->  | U15: =IFERROR(VLOOKUP($M15,العملاء!$A$3:$S$4274,17,0),"") ->  | V15: =IF($T15=0,"خالص",IFERROR(VLOOKUP($M15,العملاء!$A$3:$N$4274,13,0),"")) ->  | W15: =IF($T15=0," خالص",IFERROR(VLOOKUP($M15,العملاء!$A$3:$S$4274,19,0),"")) -> 
D16: =IF(T16=0,0,IF($A16="","",IF($P$2="",VLOOKUP($M16,العملاء!$A$4:$Q$9274,10,0),$P$2))) ->  | E16: =IF(A16="","",NOW()) ->  | G16: =IFERROR(EDATE(VLOOKUP(A16,العملاء!$A$4:$E$49274,5,0),F16),"") ->  | J16: =ROWS(العملاء!$B$4:B16) -> 13 | K16: =IF(IFERROR(ISNUMBER(SEARCH(البحث!$N$2,العملاء!$B16&" "&العملاء!$C16&" "&العملاء!$D16&" "&العملاء!$L16)),""),J16,"") ->  | M16: =IF(البحث!$N$2="","",IFERROR(SMALL($K$4:$K9761,J16),"")) ->  | N16: =IFERROR(VLOOKUP($M16,العملاء!$A$4:$Q$9274,2,0),"") ->  | O16: =IFERROR(VLOOKUP($M16,العملاء!$A$4:$Q$9274,4,0),"") ->  | P16: =IF(M16="","",IF(T16=0,"خالص",IFERROR(VLOOKUP($M16,العملاء!$A$4:$Q$9274,10,0),""))) ->  | Q16: =IFERROR(VLOOKUP($M16,العملاء!$A$4:$S$9274,14,0),"") ->  | R16: =IFERROR(VLOOKUP($M16,العملاء!$A$3:$S$4274,18,0),"") ->  | S16: =IFERROR(VLOOKUP($M16,العملاء!$A$4:$S$9274,15,0),"") ->  | T16: =IFERROR(VLOOKUP($M16,العملاء!$A$3:$S$4274,16,0),"") ->  | U16: =IFERROR(VLOOKUP($M16,العملاء!$A$3:$S$4274,17,0),"") ->  | V16: =IF($T16=0,"خالص",IFERROR(VLOOKUP($M16,العملاء!$A$3:$N$4274,13,0),"")) ->  | W16: =IF($T16=0," خالص",IFERROR(VLOOKUP($M16,العملاء!$A$3:$S$4274,19,0),"")) -> 
D17: =IF(T17=0,0,IF($A17="","",IF($P$2="",VLOOKUP($M17,العملاء!$A$4:$Q$9274,10,0),$P$2))) ->  | G17: =IFERROR(EDATE(VLOOKUP(A17,العملاء!$A$4:$E$49274,5,0),F17),"") ->  | J17: =ROWS(العملاء!$B$4:B17) -> 14 | K17: =IF(IFERROR(ISNUMBER(SEARCH(البحث!$N$2,العملاء!$B17&" "&العملاء!$C17&" "&العملاء!$D17&" "&العملاء!$L17)),""),J17,"") ->  | M17: =IF(البحث!$N$2="","",IFERROR(SMALL($K$4:$K9762,J17),"")) ->  | N17: =IFERROR(VLOOKUP($M17,العملاء!$A$4:$Q$9274,2,0),"") ->  | O17: =IFERROR(VLOOKUP($M17,العملاء!$A$4:$Q$9274,4,0),"") ->  | P17: =IF(M17="","",IF(T17=0,"خالص",IFERROR(VLOOKUP($M17,العملاء!$A$4:$Q$9274,10,0),""))) ->  | Q17: =IFERROR(VLOOKUP($M17,العملاء!$A$4:$S$9274,14,0),"") ->  | R17: =IFERROR(VLOOKUP($M17,العملاء!$A$3:$S$4274,18,0),"") ->  | S17: =IFERROR(VLOOKUP($M17,العملاء!$A$4:$S$9274,15,0),"") ->  | T17: =IFERROR(VLOOKUP($M17,العملاء!$A$3:$S$4274,16,0),"") ->  | U17: =IFERROR(VLOOKUP($M17,العملاء!$A$3:$S$4274,17,0),"") ->  | V17: =IF($T17=0,"خالص",IFERROR(VLOOKUP($M17,العملاء!$A$3:$N$4274,13,0),"")) ->  | W17: =IF($T17=0," خالص",IFERROR(VLOOKUP($M17,العملاء!$A$3:$S$4274,19,0),"")) -> 
D18: =IF(T18=0,0,IF($A18="","",IF($P$2="",VLOOKUP($M18,العملاء!$A$4:$Q$9274,10,0),$P$2))) ->  | G18: =IFERROR(EDATE(VLOOKUP(A18,العملاء!$A$4:$E$49274,5,0),F18),"") ->  | J18: =ROWS(العملاء!$B$4:B18) -> 15 | K18: =IF(IFERROR(ISNUMBER(SEARCH(البحث!$N$2,العملاء!$B18&" "&العملاء!$C18&" "&العملاء!$D18&" "&العملاء!$L18)),""),J18,"") ->  | M18: =IF(البحث!$N$2="","",IFERROR(SMALL($K$4:$K9763,J18),"")) ->  | N18: =IFERROR(VLOOKUP($M18,العملاء!$A$4:$Q$9274,2,0),"") ->  | O18: =IFERROR(VLOOKUP($M18,العملاء!$A$4:$Q$9274,4,0),"") ->  | P18: =IF(M18="","",IF(T18=0,"خالص",IFERROR(VLOOKUP($M18,العملاء!$A$4:$Q$9274,10,0),""))) ->  | Q18: =IFERROR(VLOOKUP($M18,العملاء!$A$4:$S$9274,14,0),"") ->  | R18: =IFERROR(VLOOKUP($M18,العملاء!$A$3:$S$4274,18,0),"") ->  | S18: =IFERROR(VLOOKUP($M18,العملاء!$A$4:$S$9274,15,0),"") ->  | T18: =IFERROR(VLOOKUP($M18,العملاء!$A$3:$S$4274,16,0),"") ->  | U18: =IFERROR(VLOOKUP($M18,العملاء!$A$3:$S$4274,17,0),"") ->  | V18: =IF($T18=0,"خالص",IFERROR(VLOOKUP($M18,العملاء!$A$3:$N$4274,13,0),"")) ->  | W18: =IF($T18=0," خالص",IFERROR(VLOOKUP($M18,العملاء!$A$3:$S$4274,19,0),"")) -> 
D19: =IF(T19=0,0,IF($A19="","",IF($P$2="",VLOOKUP($M19,العملاء!$A$4:$Q$9274,10,0),$P$2))) ->  | G19: =IFERROR(EDATE(VLOOKUP(A19,العملاء!$A$4:$E$49274,5,0),F19),"") ->  | J19: =ROWS(العملاء!$B$4:B19) -> 16 | K19: =IF(IFERROR(ISNUMBER(SEARCH(البحث!$N$2,العملاء!$B19&" "&العملاء!$C19&" "&العملاء!$D19&" "&العملاء!$L19)),""),J19,"") ->  | M19: =IF(البحث!$N$2="","",IFERROR(SMALL($K$4:$K9764,J19),"")) ->  | N19: =IFERROR(VLOOKUP($M19,العملاء!$A$4:$Q$9274,2,0),"") ->  | O19: =IFERROR(VLOOKUP($M19,العملاء!$A$4:$Q$9274,4,0),"") ->  | P19: =IF(M19="","",IF(T19=0,"خالص",IFERROR(VLOOKUP($M19,العملاء!$A$4:$Q$9274,10,0),""))) ->  | Q19: =IFERROR(VLOOKUP($M19,العملاء!$A$4:$S$9274,14,0),"") ->  | R19: =IFERROR(VLOOKUP($M19,العملاء!$A$3:$S$4274,18,0),"") ->  | S19: =IFERROR(VLOOKUP($M19,العملاء!$A$4:$S$9274,15,0),"") ->  | T19: =IFERROR(VLOOKUP($M19,العملاء!$A$3:$S$4274,16,0),"") ->  | U19: =IFERROR(VLOOKUP($M19,العملاء!$A$3:$S$4274,17,0),"") ->  | V19: =IF($T19=0,"خالص",IFERROR(VLOOKUP($M19,العملاء!$A$3:$N$4274,13,0),"")) ->  | W19: =IF($T19=0," خالص",IFERROR(VLOOKUP($M19,العملاء!$A$3:$S$4274,19,0),"")) -> 
D20: =IF(T20=0,0,IF($A20="","",IF($P$2="",VLOOKUP($M20,العملاء!$A$4:$Q$9274,10,0),$P$2))) ->  | G20: =IFERROR(EDATE(VLOOKUP(A20,العملاء!$A$4:$E$49274,5,0),F20),"") ->  | J20: =ROWS(العملاء!$B$4:B20) -> 17 | K20: =IF(IFERROR(ISNUMBER(SEARCH(البحث!$N$2,العملاء!$B20&" "&العملاء!$C20&" "&العملاء!$D20&" "&العملاء!$L20)),""),J20,"") ->  | M20: =IF(البحث!$N$2="","",IFERROR(SMALL($K$4:$K9765,J20),"")) ->  | N20: =IFERROR(VLOOKUP($M20,العملاء!$A$4:$Q$9274,2,0),"") ->  | O20: =IFERROR(VLOOKUP($M20,العملاء!$A$4:$Q$9274,4,0),"") ->  | P20: =IF(M20="","",IF(T20=0,"خالص",IFERROR(VLOOKUP($M20,العملاء!$A$4:$Q$9274,10,0),""))) ->  | Q20: =IFERROR(VLOOKUP($M20,العملاء!$A$4:$S$9274,14,0),"") ->  | R20: =IFERROR(VLOOKUP($M20,العملاء!$A$3:$S$4274,18,0),"") ->  | S20: =IFERROR(VLOOKUP($M20,العملاء!$A$4:$S$9274,15,0),"") ->  | T20: =IFERROR(VLOOKUP($M20,العملاء!$A$3:$S$4274,16,0),"") ->  | U20: =IFERROR(VLOOKUP($M20,العملاء!$A$3:$S$4274,17,0),"") ->  | V20: =IF($T20=0,"خالص",IFERROR(VLOOKUP($M20,العملاء!$A$3:$N$4274,13,0),"")) ->  | W20: =IF($T20=0," خالص",IFERROR(VLOOKUP($M20,العملاء!$A$3:$S$4274,19,0),"")) -> 
D21: =IF(T21=0,0,IF($A21="","",IF($P$2="",VLOOKUP($M21,العملاء!$A$4:$Q$9274,10,0),$P$2))) ->  | G21: =IFERROR(EDATE(VLOOKUP(A21,العملاء!$A$4:$E$49274,5,0),F21),"") ->  | J21: =ROWS(العملاء!$B$4:B20) -> 17 | K21: =IF(IFERROR(ISNUMBER(SEARCH(البحث!$N$2,العملاء!#REF!&" "&العملاء!#REF!&" "&العملاء!#REF!&" "&العملاء!#REF!)),""),J21,"") ->  | M21: =IF(البحث!$N$2="","",IFERROR(SMALL($K$4:$K9766,J21),"")) ->  | N21: =IFERROR(VLOOKUP($M21,العملاء!$A$4:$Q$9274,2,0),"") ->  | O21: =IFERROR(VLOOKUP($M21,العملاء!$A$4:$Q$9274,4,0),"") ->  | P21: =IF(M21="","",IF(T21=0,"خالص",IFERROR(VLOOKUP($M21,العملاء!$A$4:$Q$9274,10,0),""))) ->  | Q21: =IFERROR(VLOOKUP($M21,العملاء!$A$4:$S$9274,14,0),"") ->  | R21: =IFERROR(VLOOKUP($M21,العملاء!$A$3:$S$4274,18,0),"") ->  | S21: =IFERROR(VLOOKUP($M21,العملاء!$A$4:$S$9274,15,0),"") ->  | T21: =IFERROR(VLOOKUP($M21,العملاء!$A$3:$S$4274,16,0),"") ->  | U21: =IFERROR(VLOOKUP($M21,العملاء!$A$3:$S$4274,17,0),"") ->  | V21: =IF($T21=0,"خالص",IFERROR(VLOOKUP($M21,العملاء!$A$3:$N$4274,13,0),"")) ->  | W21: =IF($T21=0," خالص",IFERROR(VLOOKUP($M21,العملاء!$A$3:$S$4274,19,0),"")) -> 
D22: =IF(T22=0,0,IF($A22="","",IF($P$2="",VLOOKUP($M22,العملاء!$A$4:$Q$9274,10,0),$P$2))) ->  | G22: =IFERROR(EDATE(VLOOKUP(A22,العملاء!$A$4:$E$49274,5,0),F22),"") ->  | M22: =IF(البحث!$N$2="","",IFERROR(SMALL($K$4:$K9767,J22),"")) ->  | N22: =IFERROR(VLOOKUP($M22,العملاء!$A$4:$Q$9274,2,0),"") ->  | O22: =IFERROR(VLOOKUP($M22,العملاء!$A$4:$Q$9274,4,0),"") ->  | P22: =IF(M22="","",IF(T22=0,"خالص",IFERROR(VLOOKUP($M22,العملاء!$A$4:$Q$9274,10,0),""))) ->  | Q22: =IFERROR(VLOOKUP($M22,العملاء!$A$4:$S$9274,14,0),"") ->  | R22: =IFERROR(VLOOKUP($M22,العملاء!$A$3:$S$4274,18,0),"") ->  | S22: =IFERROR(VLOOKUP($M22,العملاء!$A$4:$S$9274,15,0),"") ->  | T22: =IFERROR(VLOOKUP($M22,العملاء!$A$3:$S$4274,16,0),"") ->  | U22: =IFERROR(VLOOKUP($M22,العملاء!$A$3:$S$4274,17,0),"") ->  | V22: =IF($T22=0,"خالص",IFERROR(VLOOKUP($M22,العملاء!$A$3:$N$4274,13,0),"")) ->  | W22: =IF($T22=0," خالص",IFERROR(VLOOKUP($M22,العملاء!$A$3:$S$4274,19,0),"")) -> 
D23: =IF(T23=0,0,IF($A23="","",IF($P$2="",VLOOKUP($M23,العملاء!$A$4:$Q$9274,10,0),$P$2))) ->  | G23: =IFERROR(EDATE(VLOOKUP(A23,العملاء!$A$4:$E$49274,5,0),F23),"") ->  | M23: =IF(البحث!$N$2="","",IFERROR(SMALL($K$4:$K9768,J23),"")) ->  | N23: =IFERROR(VLOOKUP($M23,العملاء!$A$4:$Q$9274,2,0),"") ->  | O23: =IFERROR(VLOOKUP($M23,العملاء!$A$4:$Q$9274,4,0),"") ->  | P23: =IF(M23="","",IF(T23=0,"خالص",IFERROR(VLOOKUP($M23,العملاء!$A$4:$Q$9274,10,0),""))) ->  | Q23: =IFERROR(VLOOKUP($M23,العملاء!$A$4:$S$9274,14,0),"") ->  | R23: =IFERROR(VLOOKUP($M23,العملاء!$A$3:$S$4274,18,0),"") ->  | S23: =IFERROR(VLOOKUP($M23,العملاء!$A$4:$S$9274,15,0),"") ->  | T23: =IFERROR(VLOOKUP($M23,العملاء!$A$3:$S$4274,16,0),"") ->  | U23: =IFERROR(VLOOKUP($M23,العملاء!$A$3:$S$4274,17,0),"") ->  | V23: =IF($T23=0,"خالص",IFERROR(VLOOKUP($M23,العملاء!$A$3:$N$4274,13,0),"")) ->  | W23: =IF($T23=0," خالص",IFERROR(VLOOKUP($M23,العملاء!$A$3:$S$4274,19,0),"")) -> 
D24: =IF(T24=0,0,IF($A24="","",IF($P$2="",VLOOKUP($M24,العملاء!$A$4:$Q$9274,10,0),$P$2))) ->  | G24: =IFERROR(EDATE(VLOOKUP(A24,العملاء!$A$4:$E$49274,5,0),F24),"") ->  | M24: =IF(البحث!$N$2="","",IFERROR(SMALL($K$4:$K9769,J24),"")) ->  | N24: =IFERROR(VLOOKUP($M24,العملاء!$A$4:$Q$9274,2,0),"") ->  | O24: =IFERROR(VLOOKUP($M24,العملاء!$A$4:$Q$9274,4,0),"") ->  | P24: =IF(M24="","",IF(T24=0,"خالص",IFERROR(VLOOKUP($M24,العملاء!$A$4:$Q$9274,10,0),""))) ->  | Q24: =IFERROR(VLOOKUP($M24,العملاء!$A$4:$S$9274,14,0),"") ->  | R24: =IFERROR(VLOOKUP($M24,العملاء!$A$3:$S$4274,18,0),"") ->  | S24: =IFERROR(VLOOKUP($M24,العملاء!$A$4:$S$9274,15,0),"") ->  | T24: =IFERROR(VLOOKUP($M24,العملاء!$A$3:$S$4274,16,0),"") ->  | U24: =IFERROR(VLOOKUP($M24,العملاء!$A$3:$S$4274,17,0),"") ->  | V24: =IF($T24=0,"خالص",IFERROR(VLOOKUP($M24,العملاء!$A$3:$N$4274,13,0),"")) ->  | W24: =IF($T24=0," خالص",IFERROR(VLOOKUP($M24,العملاء!$A$3:$S$4274,19,0),"")) -> 
D25: =IF(T25=0,0,IF($A25="","",IF($P$2="",VLOOKUP($M25,العملاء!$A$4:$Q$9274,10,0),$P$2))) ->  | G25: =IFERROR(EDATE(VLOOKUP(A25,العملاء!$A$4:$E$49274,5,0),F25),"") ->  | M25: =IF(البحث!$N$2="","",IFERROR(SMALL($K$4:$K9770,J25),"")) ->  | N25: =IFERROR(VLOOKUP($M25,العملاء!$A$4:$Q$9274,2,0),"") ->  | O25: =IFERROR(VLOOKUP($M25,العملاء!$A$4:$Q$9274,4,0),"") ->  | P25: =IF(M25="","",IF(T25=0,"خالص",IFERROR(VLOOKUP($M25,العملاء!$A$4:$Q$9274,10,0),""))) ->  | Q25: =IFERROR(VLOOKUP($M25,العملاء!$A$4:$S$9274,14,0),"") ->  | R25: =IFERROR(VLOOKUP($M25,العملاء!$A$3:$S$4274,18,0),"") ->  | S25: =IFERROR(VLOOKUP($M25,العملاء!$A$4:$S$9274,15,0),"") ->  | T25: =IFERROR(VLOOKUP($M25,العملاء!$A$3:$S$4274,16,0),"") ->  | U25: =IFERROR(VLOOKUP($M25,العملاء!$A$3:$S$4274,17,0),"") ->  | V25: =IF($T25=0,"خالص",IFERROR(VLOOKUP($M25,العملاء!$A$3:$N$4274,13,0),"")) ->  | W25: =IF($T25=0," خالص",IFERROR(VLOOKUP($M25,العملاء!$A$3:$S$4274,19,0),"")) -> 
J26: =ROWS(العملاء!$B$4:B20) -> 17 | K26: =IF(IFERROR(ISNUMBER(SEARCH(البحث!$N$2,العملاء!#REF!&" "&العملاء!#REF!&" "&العملاء!#REF!&" "&العملاء!#REF!)),""),J26,"") ->  | M26: =IF(البحث!$N$2="","",IFERROR(SMALL($K$4:$K9767,J26),"")) -> 
J27: =ROWS(العملاء!$B$4:B20) -> 17 | K27: =IF(IFERROR(ISNUMBER(SEARCH(البحث!$N$2,العملاء!#REF!&" "&العملاء!#REF!&" "&العملاء!#REF!&" "&العملاء!#REF!)),""),J27,"") ->  | M27: =IF(البحث!$N$2="","",IFERROR(SMALL($K$4:$K9768,J27),"")) -> 
J28: =ROWS(العملاء!$B$4:B20) -> 17 | K28: =IF(IFERROR(ISNUMBER(SEARCH(البحث!$N$2,العملاء!#REF!&" "&العملاء!#REF!&" "&العملاء!#REF!&" "&العملاء!#REF!)),""),J28,"") ->  | M28: =IF(البحث!$N$2="","",IFERROR(SMALL($K$4:$K9769,J28),"")) -> 
J29: =ROWS(العملاء!$B$4:B20) -> 17 | K29: =IF(IFERROR(ISNUMBER(SEARCH(البحث!$N$2,العملاء!#REF!&" "&العملاء!#REF!&" "&العملاء!#REF!&" "&العملاء!#REF!)),""),J29,"") ->  | M29: =IF(البحث!$N$2="","",IFERROR(SMALL($K$4:$K9770,J29),"")) -> 
J30: =ROWS(العملاء!$B$4:B20) -> 17 | K30: =IF(IFERROR(ISNUMBER(SEARCH(البحث!$N$2,العملاء!#REF!&" "&العملاء!#REF!&" "&العملاء!#REF!&" "&العملاء!#REF!)),""),J30,"") ->  | M30: =IF(البحث!$N$2="","",IFERROR(SMALL($K$4:$K9771,J30),"")) -> 
J31: =ROWS(العملاء!$B$4:B20) -> 17 | K31: =IF(IFERROR(ISNUMBER(SEARCH(البحث!$N$2,العملاء!#REF!&" "&العملاء!#REF!&" "&العملاء!#REF!&" "&العملاء!#REF!)),""),J31,"") ->  | M31: =IF(البحث!$N$2="","",IFERROR(SMALL($K$4:$K9772,J31),"")) -> 
J32: =ROWS(العملاء!$B$4:B20) -> 17 | K32: =IF(IFERROR(ISNUMBER(SEARCH(البحث!$N$2,العملاء!#REF!&" "&العملاء!#REF!&" "&العملاء!#REF!&" "&العملاء!#REF!)),""),J32,"") ->  | M32: =IF(البحث!$N$2="","",IFERROR(SMALL($K$4:$K9773,J32),"")) -> 
J33: =ROWS(العملاء!$B$4:B20) -> 17 | K33: =IF(IFERROR(ISNUMBER(SEARCH(البحث!$N$2,العملاء!#REF!&" "&العملاء!#REF!&" "&العملاء!#REF!&" "&العملاء!#REF!)),""),J33,"") ->  | M33: =IF(البحث!$N$2="","",IFERROR(SMALL($K$4:$K9774,J33),"")) -> 
J34: =ROWS(العملاء!$B$4:B20) -> 17 | K34: =IF(IFERROR(ISNUMBER(SEARCH(البحث!$N$2,العملاء!#REF!&" "&العملاء!#REF!&" "&العملاء!#REF!&" "&العملاء!#REF!)),""),J34,"") ->  | M34: =IF(البحث!$N$2="","",IFERROR(SMALL($K$4:$K9775,J34),"")) -> 
J35: =ROWS(العملاء!$B$4:B20) -> 17 | K35: =IF(IFERROR(ISNUMBER(SEARCH(البحث!$N$2,العملاء!#REF!&" "&العملاء!#REF!&" "&العملاء!#REF!&" "&العملاء!#REF!)),""),J35,"") ->  | M35: =IF(البحث!$N$2="","",IFERROR(SMALL($K$4:$K9776,J35),"")) -> 
J36: =ROWS(العملاء!$B$4:B20) -> 17 | K36: =IF(IFERROR(ISNUMBER(SEARCH(البحث!$N$2,العملاء!#REF!&" "&العملاء!#REF!&" "&العملاء!#REF!&" "&العملاء!#REF!)),""),J36,"") ->  | M36: =IF(البحث!$N$2="","",IFERROR(SMALL($K$4:$K9777,J36),"")) -> 
J37: =ROWS(العملاء!$B$4:B20) -> 17 | K37: =IF(IFERROR(ISNUMBER(SEARCH(البحث!$N$2,العملاء!#REF!&" "&العملاء!#REF!&" "&العملاء!#REF!&" "&العملاء!#REF!)),""),J37,"") ->  | M37: =IF(البحث!$N$2="","",IFERROR(SMALL($K$4:$K9778,J37),"")) -> 
J38: =ROWS(العملاء!$B$4:B20) -> 17 | K38: =IF(IFERROR(ISNUMBER(SEARCH(البحث!$N$2,العملاء!#REF!&" "&العملاء!#REF!&" "&العملاء!#REF!&" "&العملاء!#REF!)),""),J38,"") ->  | M38: =IF(البحث!$N$2="","",IFERROR(SMALL($K$4:$K9779,J38),"")) -> 
J39: =ROWS(العملاء!$B$4:B20) -> 17 | K39: =IF(IFERROR(ISNUMBER(SEARCH(البحث!$N$2,العملاء!#REF!&" "&العملاء!#REF!&" "&العملاء!#REF!&" "&العملاء!#REF!)),""),J39,"") ->  | M39: =IF(البحث!$N$2="","",IFERROR(SMALL($K$4:$K9780,J39),"")) -> 
J40: =ROWS(العملاء!$B$4:B20) -> 17 | K40: =IF(IFERROR(ISNUMBER(SEARCH(البحث!$N$2,العملاء!#REF!&" "&العملاء!#REF!&" "&العملاء!#REF!&" "&العملاء!#REF!)),""),J40,"") ->  | M40: =IF(البحث!$N$2="","",IFERROR(SMALL($K$4:$K9781,J40),"")) -> 
J41: =ROWS(العملاء!$B$4:B20) -> 17 | K41: =IF(IFERROR(ISNUMBER(SEARCH(البحث!$N$2,العملاء!#REF!&" "&العملاء!#REF!&" "&العملاء!#REF!&" "&العملاء!#REF!)),""),J41,"") ->  | M41: =IF(البحث!$N$2="","",IFERROR(SMALL($K$4:$K9782,J41),"")) -> 
J42: =ROWS(العملاء!$B$4:B20) -> 17 | K42: =IF(IFERROR(ISNUMBER(SEARCH(البحث!$N$2,العملاء!#REF!&" "&العملاء!#REF!&" "&العملاء!#REF!&" "&العملاء!#REF!)),""),J42,"") ->  | M42: =IF(البحث!$N$2="","",IFERROR(SMALL($K$4:$K9783,J42),"")) -> 
J43: =ROWS(العملاء!$B$4:B20) -> 17 | K43: =IF(IFERROR(ISNUMBER(SEARCH(البحث!$N$2,العملاء!#REF!&" "&العملاء!#REF!&" "&العملاء!#REF!&" "&العملاء!#REF!)),""),J43,"") ->  | M43: =IF(البحث!$N$2="","",IFERROR(SMALL($K$4:$K9784,J43),"")) -> 
J44: =ROWS(العملاء!$B$4:B20) -> 17 | K44: =IF(IFERROR(ISNUMBER(SEARCH(البحث!$N$2,العملاء!#REF!&" "&العملاء!#REF!&" "&العملاء!#REF!&" "&العملاء!#REF!)),""),J44,"") ->  | M44: =IF(البحث!$N$2="","",IFERROR(SMALL($K$4:$K9785,J44),"")) -> 
J45: =ROWS(العملاء!$B$4:B20) -> 17 | K45: =IF(IFERROR(ISNUMBER(SEARCH(البحث!$N$2,العملاء!#REF!&" "&العملاء!#REF!&" "&العملاء!#REF!&" "&العملاء!#REF!)),""),J45,"") ->  | M45: =IF(البحث!$N$2="","",IFERROR(SMALL($K$4:$K9786,J45),"")) -> 
J46: =ROWS(العملاء!$B$4:B20) -> 17 | K46: =IF(IFERROR(ISNUMBER(SEARCH(البحث!$N$2,العملاء!#REF!&" "&العملاء!#REF!&" "&العملاء!#REF!&" "&العملاء!#REF!)),""),J46,"") ->  | M46: =IF(البحث!$N$2="","",IFERROR(SMALL($K$4:$K9787,J46),"")) -> 
J47: =ROWS(العملاء!$B$4:B20) -> 17 | K47: =IF(IFERROR(ISNUMBER(SEARCH(البحث!$N$2,العملاء!#REF!&" "&العملاء!#REF!&" "&العملاء!#REF!&" "&العملاء!#REF!)),""),J47,"") ->  | M47: =IF(البحث!$N$2="","",IFERROR(SMALL($K$4:$K9788,J47),"")) -> 
J48: =ROWS(العملاء!$B$4:B20) -> 17 | K48: =IF(IFERROR(ISNUMBER(SEARCH(البحث!$N$2,العملاء!#REF!&" "&العملاء!#REF!&" "&العملاء!#REF!&" "&العملاء!#REF!)),""),J48,"") ->  | M48: =IF(البحث!$N$2="","",IFERROR(SMALL($K$4:$K9789,J48),"")) -> 
J49: =ROWS(العملاء!$B$4:B20) -> 17 | K49: =IF(IFERROR(ISNUMBER(SEARCH(البحث!$N$2,العملاء!#REF!&" "&العملاء!#REF!&" "&العملاء!#REF!&" "&العملاء!#REF!)),""),J49,"") ->  | M49: =IF(البحث!$N$2="","",IFERROR(SMALL($K$4:$K9790,J49),"")) -> 
J50: =ROWS(العملاء!$B$4:B20) -> 17 | K50: =IF(IFERROR(ISNUMBER(SEARCH(البحث!$N$2,العملاء!#REF!&" "&العملاء!#REF!&" "&العملاء!#REF!&" "&العملاء!#REF!)),""),J50,"") ->  | M50: =IF(البحث!$N$2="","",IFERROR(SMALL($K$4:$K9791,J50),"")) -> 
J51: =ROWS(العملاء!$B$4:B20) -> 17 | K51: =IF(IFERROR(ISNUMBER(SEARCH(البحث!$N$2,العملاء!#REF!&" "&العملاء!#REF!&" "&العملاء!#REF!&" "&العملاء!#REF!)),""),J51,"") ->  | M51: =IF(البحث!$N$2="","",IFERROR(SMALL($K$4:$K9792,J51),"")) -> 
J52: =ROWS(العملاء!$B$4:B20) -> 17 | K52: =IF(IFERROR(ISNUMBER(SEARCH(البحث!$N$2,العملاء!#REF!&" "&العملاء!#REF!&" "&العملاء!#REF!&" "&العملاء!#REF!)),""),J52,"") ->  | M52: =IF(البحث!$N$2="","",IFERROR(SMALL($K$4:$K9793,J52),"")) -> 
J53: =ROWS(العملاء!$B$4:B20) -> 17 | K53: =IF(IFERROR(ISNUMBER(SEARCH(البحث!$N$2,العملاء!#REF!&" "&العملاء!#REF!&" "&العملاء!#REF!&" "&العملاء!#REF!)),""),J53,"") ->  | M53: =IF(البحث!$N$2="","",IFERROR(SMALL($K$4:$K9794,J53),"")) -> 
J54: =ROWS(العملاء!$B$4:B20) -> 17 | K54: =IF(IFERROR(ISNUMBER(SEARCH(البحث!$N$2,العملاء!#REF!&" "&العملاء!#REF!&" "&العملاء!#REF!&" "&العملاء!#REF!)),""),J54,"") ->  | M54: =IF(البحث!$N$2="","",IFERROR(SMALL($K$4:$K9795,J54),"")) -> 
J55: =ROWS(العملاء!$B$4:B20) -> 17 | K55: =IF(IFERROR(ISNUMBER(SEARCH(البحث!$N$2,العملاء!#REF!&" "&العملاء!#REF!&" "&العملاء!#REF!&" "&العملاء!#REF!)),""),J55,"") ->  | M55: =IF(البحث!$N$2="","",IFERROR(SMALL($K$4:$K9796,J55),"")) -> 
J56: =ROWS(العملاء!$B$4:B20) -> 17 | K56: =IF(IFERROR(ISNUMBER(SEARCH(البحث!$N$2,العملاء!#REF!&" "&العملاء!#REF!&" "&العملاء!#REF!&" "&العملاء!#REF!)),""),J56,"") ->  | M56: =IF(البحث!$N$2="","",IFERROR(SMALL($K$4:$K9797,J56),"")) -> 
J57: =ROWS(العملاء!$B$4:B20) -> 17 | K57: =IF(IFERROR(ISNUMBER(SEARCH(البحث!$N$2,العملاء!#REF!&" "&العملاء!#REF!&" "&العملاء!#REF!&" "&العملاء!#REF!)),""),J57,"") ->  | M57: =IF(البحث!$N$2="","",IFERROR(SMALL($K$4:$K9798,J57),"")) -> 
J58: =ROWS(العملاء!$B$4:B20) -> 17 | K58: =IF(IFERROR(ISNUMBER(SEARCH(البحث!$N$2,العملاء!#REF!&" "&العملاء!#REF!&" "&العملاء!#REF!&" "&العملاء!#REF!)),""),J58,"") ->  | M58: =IF(البحث!$N$2="","",IFERROR(SMALL($K$4:$K9799,J58),"")) -> 
J59: =ROWS(العملاء!$B$4:B20) -> 17 | K59: =IF(IFERROR(ISNUMBER(SEARCH(البحث!$N$2,العملاء!#REF!&" "&العملاء!#REF!&" "&العملاء!#REF!&" "&العملاء!#REF!)),""),J59,"") ->  | M59: =IF(البحث!$N$2="","",IFERROR(SMALL($K$4:$K9800,J59),"")) -> 
J60: =ROWS(العملاء!$B$4:B20) -> 17 | K60: =IF(IFERROR(ISNUMBER(SEARCH(البحث!$N$2,العملاء!#REF!&" "&العملاء!#REF!&" "&العملاء!#REF!&" "&العملاء!#REF!)),""),J60,"") ->  | M60: =IF(البحث!$N$2="","",IFERROR(SMALL($K$4:$K9801,J60),"")) -> 
J61: =ROWS(العملاء!$B$4:B20) -> 17 | K61: =IF(IFERROR(ISNUMBER(SEARCH(البحث!$N$2,العملاء!#REF!&" "&العملاء!#REF!&" "&العملاء!#REF!&" "&العملاء!#REF!)),""),J61,"") ->  | M61: =IF(البحث!$N$2="","",IFERROR(SMALL($K$4:$K9802,J61),"")) -> 
J62: =ROWS(العملاء!$B$4:B20) -> 17 | K62: =IF(IFERROR(ISNUMBER(SEARCH(البحث!$N$2,العملاء!#REF!&" "&العملاء!#REF!&" "&العملاء!#REF!&" "&العملاء!#REF!)),""),J62,"") ->  | M62: =IF(البحث!$N$2="","",IFERROR(SMALL($K$4:$K9803,J62),"")) -> 
J63: =ROWS(العملاء!$B$4:B20) -> 17 | K63: =IF(IFERROR(ISNUMBER(SEARCH(البحث!$N$2,العملاء!#REF!&" "&العملاء!#REF!&" "&العملاء!#REF!&" "&العملاء!#REF!)),""),J63,"") ->  | M63: =IF(البحث!$N$2="","",IFERROR(SMALL($K$4:$K9804,J63),"")) -> 
J64: =ROWS(العملاء!$B$4:B20) -> 17 | K64: =IF(IFERROR(ISNUMBER(SEARCH(البحث!$N$2,العملاء!#REF!&" "&العملاء!#REF!&" "&العملاء!#REF!&" "&العملاء!#REF!)),""),J64,"") ->  | M64: =IF(البحث!$N$2="","",IFERROR(SMALL($K$4:$K9805,J64),"")) -> 
J65: =ROWS(العملاء!$B$4:B20) -> 17 | K65: =IF(IFERROR(ISNUMBER(SEARCH(البحث!$N$2,العملاء!#REF!&" "&العملاء!#REF!&" "&العملاء!#REF!&" "&العملاء!#REF!)),""),J65,"") ->  | M65: =IF(البحث!$N$2="","",IFERROR(SMALL($K$4:$K9806,J65),"")) -> 
J66: =ROWS(العملاء!$B$4:B20) -> 17 | K66: =IF(IFERROR(ISNUMBER(SEARCH(البحث!$N$2,العملاء!#REF!&" "&العملاء!#REF!&" "&العملاء!#REF!&" "&العملاء!#REF!)),""),J66,"") ->  | M66: =IF(البحث!$N$2="","",IFERROR(SMALL($K$4:$K9807,J66),"")) -> 
J67: =ROWS(العملاء!$B$4:B20) -> 17 | K67: =IF(IFERROR(ISNUMBER(SEARCH(البحث!$N$2,العملاء!#REF!&" "&العملاء!#REF!&" "&العملاء!#REF!&" "&العملاء!#REF!)),""),J67,"") ->  | M67: =IF(البحث!$N$2="","",IFERROR(SMALL($K$4:$K9808,J67),"")) -> 
J68: =ROWS(العملاء!$B$4:B20) -> 17 | K68: =IF(IFERROR(ISNUMBER(SEARCH(البحث!$N$2,العملاء!#REF!&" "&العملاء!#REF!&" "&العملاء!#REF!&" "&العملاء!#REF!)),""),J68,"") ->  | M68: =IF(البحث!$N$2="","",IFERROR(SMALL($K$4:$K9809,J68),"")) -> 
J69: =ROWS(العملاء!$B$4:B20) -> 17 | K69: =IF(IFERROR(ISNUMBER(SEARCH(البحث!$N$2,العملاء!#REF!&" "&العملاء!#REF!&" "&العملاء!#REF!&" "&العملاء!#REF!)),""),J69,"") ->  | M69: =IF(البحث!$N$2="","",IFERROR(SMALL($K$4:$K9810,J69),"")) -> 
J70: =ROWS(العملاء!$B$4:B20) -> 17 | K70: =IF(IFERROR(ISNUMBER(SEARCH(البحث!$N$2,العملاء!#REF!&" "&العملاء!#REF!&" "&العملاء!#REF!&" "&العملاء!#REF!)),""),J70,"") ->  | M70: =IF(البحث!$N$2="","",IFERROR(SMALL($K$4:$K9811,J70),"")) -> 
J71: =ROWS(العملاء!$B$4:B20) -> 17 | K71: =IF(IFERROR(ISNUMBER(SEARCH(البحث!$N$2,العملاء!#REF!&" "&العملاء!#REF!&" "&العملاء!#REF!&" "&العملاء!#REF!)),""),J71,"") ->  | M71: =IF(البحث!$N$2="","",IFERROR(SMALL($K$4:$K9812,J71),"")) -> 
J72: =ROWS(العملاء!$B$4:B20) -> 17 | K72: =IF(IFERROR(ISNUMBER(SEARCH(البحث!$N$2,العملاء!#REF!&" "&العملاء!#REF!&" "&العملاء!#REF!&" "&العملاء!#REF!)),""),J72,"") ->  | M72: =IF(البحث!$N$2="","",IFERROR(SMALL($K$4:$K9813,J72),"")) -> 
J73: =ROWS(العملاء!$B$4:B20) -> 17 | K73: =IF(IFERROR(ISNUMBER(SEARCH(البحث!$N$2,العملاء!#REF!&" "&العملاء!#REF!&" "&العملاء!#REF!&" "&العملاء!#REF!)),""),J73,"") ->  | M73: =IF(البحث!$N$2="","",IFERROR(SMALL($K$4:$K9814,J73),"")) -> 
J74: =ROWS(العملاء!$B$4:B20) -> 17 | K74: =IF(IFERROR(ISNUMBER(SEARCH(البحث!$N$2,العملاء!#REF!&" "&العملاء!#REF!&" "&العملاء!#REF!&" "&العملاء!#REF!)),""),J74,"") ->  | M74: =IF(البحث!$N$2="","",IFERROR(SMALL($K$4:$K9815,J74),"")) -> 
J75: =ROWS(العملاء!$B$4:B20) -> 17 | K75: =IF(IFERROR(ISNUMBER(SEARCH(البحث!$N$2,العملاء!#REF!&" "&العملاء!#REF!&" "&العملاء!#REF!&" "&العملاء!#REF!)),""),J75,"") ->  | M75: =IF(البحث!$N$2="","",IFERROR(SMALL($K$4:$K9816,J75),"")) -> 
J76: =ROWS(العملاء!$B$4:B20) -> 17 | K76: =IF(IFERROR(ISNUMBER(SEARCH(البحث!$N$2,العملاء!#REF!&" "&العملاء!#REF!&" "&العملاء!#REF!&" "&العملاء!#REF!)),""),J76,"") ->  | M76: =IF(البحث!$N$2="","",IFERROR(SMALL($K$4:$K9817,J76),"")) -> 
J77: =ROWS(العملاء!$B$4:B20) -> 17 | K77: =IF(IFERROR(ISNUMBER(SEARCH(البحث!$N$2,العملاء!#REF!&" "&العملاء!#REF!&" "&العملاء!#REF!&" "&العملاء!#REF!)),""),J77,"") ->  | M77: =IF(البحث!$N$2="","",IFERROR(SMALL($K$4:$K9818,J77),"")) -> 
J78: =ROWS(العملاء!$B$4:B20) -> 17 | K78: =IF(IFERROR(ISNUMBER(SEARCH(البحث!$N$2,العملاء!#REF!&" "&العملاء!#REF!&" "&العملاء!#REF!&" "&العملاء!#REF!)),""),J78,"") ->  | M78: =IF(البحث!$N$2="","",IFERROR(SMALL($K$4:$K9819,J78),"")) -> 
J79: =ROWS(العملاء!$B$4:B20) -> 17 | K79: =IF(IFERROR(ISNUMBER(SEARCH(البحث!$N$2,العملاء!#REF!&" "&العملاء!#REF!&" "&العملاء!#REF!&" "&العملاء!#REF!)),""),J79,"") ->  | M79: =IF(البحث!$N$2="","",IFERROR(SMALL($K$4:$K9820,J79),"")) -> 
J80: =ROWS(العملاء!$B$4:B20) -> 17 | K80: =IF(IFERROR(ISNUMBER(SEARCH(البحث!$N$2,العملاء!#REF!&" "&العملاء!#REF!&" "&العملاء!#REF!&" "&العملاء!#REF!)),""),J80,"") ->  | M80: =IF(البحث!$N$2="","",IFERROR(SMALL($K$4:$K9821,J80),"")) -> 
J81: =ROWS(العملاء!$B$4:B20) -> 17 | K81: =IF(IFERROR(ISNUMBER(SEARCH(البحث!$N$2,العملاء!#REF!&" "&العملاء!#REF!&" "&العملاء!#REF!&" "&العملاء!#REF!)),""),J81,"") ->  | M81: =IF(البحث!$N$2="","",IFERROR(SMALL($K$4:$K9822,J81),"")) -> 
J82: =ROWS(العملاء!$B$4:B20) -> 17 | K82: =IF(IFERROR(ISNUMBER(SEARCH(البحث!$N$2,العملاء!#REF!&" "&العملاء!#REF!&" "&العملاء!#REF!&" "&العملاء!#REF!)),""),J82,"") ->  | M82: =IF(البحث!$N$2="","",IFERROR(SMALL($K$4:$K9823,J82),"")) -> 
J83: =ROWS(العملاء!$B$4:B20) -> 17 | K83: =IF(IFERROR(ISNUMBER(SEARCH(البحث!$N$2,العملاء!#REF!&" "&العملاء!#REF!&" "&العملاء!#REF!&" "&العملاء!#REF!)),""),J83,"") ->  | M83: =IF(البحث!$N$2="","",IFERROR(SMALL($K$4:$K9824,J83),"")) -> 
J84: =ROWS(العملاء!$B$4:B20) -> 17 | K84: =IF(IFERROR(ISNUMBER(SEARCH(البحث!$N$2,العملاء!#REF!&" "&العملاء!#REF!&" "&العملاء!#REF!&" "&العملاء!#REF!)),""),J84,"") ->  | M84: =IF(البحث!$N$2="","",IFERROR(SMALL($K$4:$K9825,J84),"")) -> 
J85: =ROWS(العملاء!$B$4:B20) -> 17 | K85: =IF(IFERROR(ISNUMBER(SEARCH(البحث!$N$2,العملاء!#REF!&" "&العملاء!#REF!&" "&العملاء!#REF!&" "&العملاء!#REF!)),""),J85,"") ->  | M85: =IF(البحث!$N$2="","",IFERROR(SMALL($K$4:$K9826,J85),"")) -> 
J86: =ROWS(العملاء!$B$4:B20) -> 17 | K86: =IF(IFERROR(ISNUMBER(SEARCH(البحث!$N$2,العملاء!#REF!&" "&العملاء!#REF!&" "&العملاء!#REF!&" "&العملاء!#REF!)),""),J86,"") ->  | M86: =IF(البحث!$N$2="","",IFERROR(SMALL($K$4:$K9827,J86),"")) -> 
J87: =ROWS(العملاء!$B$4:B20) -> 17 | K87: =IF(IFERROR(ISNUMBER(SEARCH(البحث!$N$2,العملاء!#REF!&" "&العملاء!#REF!&" "&العملاء!#REF!&" "&العملاء!#REF!)),""),J87,"") ->  | M87: =IF(البحث!$N$2="","",IFERROR(SMALL($K$4:$K9828,J87),"")) -> 
J88: =ROWS(العملاء!$B$4:B20) -> 17 | K88: =IF(IFERROR(ISNUMBER(SEARCH(البحث!$N$2,العملاء!#REF!&" "&العملاء!#REF!&" "&العملاء!#REF!&" "&العملاء!#REF!)),""),J88,"") ->  | M88: =IF(البحث!$N$2="","",IFERROR(SMALL($K$4:$K9829,J88),"")) -> 
J89: =ROWS(العملاء!$B$4:B20) -> 17 | K89: =IF(IFERROR(ISNUMBER(SEARCH(البحث!$N$2,العملاء!#REF!&" "&العملاء!#REF!&" "&العملاء!#REF!&" "&العملاء!#REF!)),""),J89,"") ->  | M89: =IF(البحث!$N$2="","",IFERROR(SMALL($K$4:$K9830,J89),"")) -> 
J90: =ROWS(العملاء!$B$4:B20) -> 17 | K90: =IF(IFERROR(ISNUMBER(SEARCH(البحث!$N$2,العملاء!#REF!&" "&العملاء!#REF!&" "&العملاء!#REF!&" "&العملاء!#REF!)),""),J90,"") ->  | M90: =IF(البحث!$N$2="","",IFERROR(SMALL($K$4:$K9831,J90),"")) -> 
J91: =ROWS(العملاء!$B$4:B20) -> 17 | K91: =IF(IFERROR(ISNUMBER(SEARCH(البحث!$N$2,العملاء!#REF!&" "&العملاء!#REF!&" "&العملاء!#REF!&" "&العملاء!#REF!)),""),J91,"") ->  | M91: =IF(البحث!$N$2="","",IFERROR(SMALL($K$4:$K9832,J91),"")) -> 
J92: =ROWS(العملاء!$B$4:B20) -> 17 | K92: =IF(IFERROR(ISNUMBER(SEARCH(البحث!$N$2,العملاء!#REF!&" "&العملاء!#REF!&" "&العملاء!#REF!&" "&العملاء!#REF!)),""),J92,"") ->  | M92: =IF(البحث!$N$2="","",IFERROR(SMALL($K$4:$K9833,J92),"")) -> 
J93: =ROWS(العملاء!$B$4:B20) -> 17 | K93: =IF(IFERROR(ISNUMBER(SEARCH(البحث!$N$2,العملاء!#REF!&" "&العملاء!#REF!&" "&العملاء!#REF!&" "&العملاء!#REF!)),""),J93,"") ->  | M93: =IF(البحث!$N$2="","",IFERROR(SMALL($K$4:$K9834,J93),"")) -> 
J94: =ROWS(العملاء!$B$4:B20) -> 17 | K94: =IF(IFERROR(ISNUMBER(SEARCH(البحث!$N$2,العملاء!#REF!&" "&العملاء!#REF!&" "&العملاء!#REF!&" "&العملاء!#REF!)),""),J94,"") ->  | M94: =IF(البحث!$N$2="","",IFERROR(SMALL($K$4:$K9835,J94),"")) -> 
J95: =ROWS(العملاء!$B$4:B20) -> 17 | K95: =IF(IFERROR(ISNUMBER(SEARCH(البحث!$N$2,العملاء!#REF!&" "&العملاء!#REF!&" "&العملاء!#REF!&" "&العملاء!#REF!)),""),J95,"") ->  | M95: =IF(البحث!$N$2="","",IFERROR(SMALL($K$4:$K9836,J95),"")) -> 
J96: =ROWS(العملاء!$B$4:B20) -> 17 | K96: =IF(IFERROR(ISNUMBER(SEARCH(البحث!$N$2,العملاء!#REF!&" "&العملاء!#REF!&" "&العملاء!#REF!&" "&العملاء!#REF!)),""),J96,"") ->  | M96: =IF(البحث!$N$2="","",IFERROR(SMALL($K$4:$K9837,J96),"")) -> 
J97: =ROWS(العملاء!$B$4:B20) -> 17 | K97: =IF(IFERROR(ISNUMBER(SEARCH(البحث!$N$2,العملاء!#REF!&" "&العملاء!#REF!&" "&العملاء!#REF!&" "&العملاء!#REF!)),""),J97,"") ->  | M97: =IF(البحث!$N$2="","",IFERROR(SMALL($K$4:$K9838,J97),"")) -> 
J98: =ROWS(العملاء!$B$4:B20) -> 17 | K98: =IF(IFERROR(ISNUMBER(SEARCH(البحث!$N$2,العملاء!#REF!&" "&العملاء!#REF!&" "&العملاء!#REF!&" "&العملاء!#REF!)),""),J98,"") ->  | M98: =IF(البحث!$N$2="","",IFERROR(SMALL($K$4:$K9839,J98),"")) -> 
J99: =ROWS(العملاء!$B$4:B20) -> 17 | K99: =IF(IFERROR(ISNUMBER(SEARCH(البحث!$N$2,العملاء!#REF!&" "&العملاء!#REF!&" "&العملاء!#REF!&" "&العملاء!#REF!)),""),J99,"") ->  | M99: =IF(البحث!$N$2="","",IFERROR(SMALL($K$4:$K9840,J99),"")) -> 
J100: =ROWS(العملاء!$B$4:B20) -> 17 | K100: =IF(IFERROR(ISNUMBER(SEARCH(البحث!$N$2,العملاء!#REF!&" "&العملاء!#REF!&" "&العملاء!#REF!&" "&العملاء!#REF!)),""),J100,"") ->  | M100: =IF(البحث!$N$2="","",IFERROR(SMALL($K$4:$K9841,J100),"")) -> 
J101: =ROWS(العملاء!$B$4:B20) -> 17 | K101: =IF(IFERROR(ISNUMBER(SEARCH(البحث!$N$2,العملاء!#REF!&" "&العملاء!#REF!&" "&العملاء!#REF!&" "&العملاء!#REF!)),""),J101,"") ->  | M101: =IF(البحث!$N$2="","",IFERROR(SMALL($K$4:$K9842,J101),"")) -> 
J102: =ROWS(العملاء!$B$4:B20) -> 17 | K102: =IF(IFERROR(ISNUMBER(SEARCH(البحث!$N$2,العملاء!#REF!&" "&العملاء!#REF!&" "&العملاء!#REF!&" "&العملاء!#REF!)),""),J102,"") ->  | M102: =IF(البحث!$N$2="","",IFERROR(SMALL($K$4:$K9843,J102),"")) -> 
J103: =ROWS(العملاء!$B$4:B20) -> 17 | K103: =IF(IFERROR(ISNUMBER(SEARCH(البحث!$N$2,العملاء!#REF!&" "&العملاء!#REF!&" "&العملاء!#REF!&" "&العملاء!#REF!)),""),J103,"") ->  | M103: =IF(البحث!$N$2="","",IFERROR(SMALL($K$4:$K9844,J103),"")) -> 
J104: =ROWS(العملاء!$B$4:B20) -> 17 | K104: =IF(IFERROR(ISNUMBER(SEARCH(البحث!$N$2,العملاء!#REF!&" "&العملاء!#REF!&" "&العملاء!#REF!&" "&العملاء!#REF!)),""),J104,"") ->  | M104: =IF(البحث!$N$2="","",IFERROR(SMALL($K$4:$K9845,J104),"")) -> 
J105: =ROWS(العملاء!$B$4:B20) -> 17 | K105: =IF(IFERROR(ISNUMBER(SEARCH(البحث!$N$2,العملاء!#REF!&" "&العملاء!#REF!&" "&العملاء!#REF!&" "&العملاء!#REF!)),""),J105,"") ->  | M105: =IF(البحث!$N$2="","",IFERROR(SMALL($K$4:$K9846,J105),"")) -> 
J106: =ROWS(العملاء!$B$4:B20) -> 17 | K106: =IF(IFERROR(ISNUMBER(SEARCH(البحث!$N$2,العملاء!#REF!&" "&العملاء!#REF!&" "&العملاء!#REF!&" "&العملاء!#REF!)),""),J106,"") ->  | M106: =IF(البحث!$N$2="","",IFERROR(SMALL($K$4:$K9847,J106),"")) -> 
J107: =ROWS(العملاء!$B$4:B20) -> 17 | K107: =IF(IFERROR(ISNUMBER(SEARCH(البحث!$N$2,العملاء!#REF!&" "&العملاء!#REF!&" "&العملاء!#REF!&" "&العملاء!#REF!)),""),J107,"") ->  | M107: =IF(البحث!$N$2="","",IFERROR(SMALL($K$4:$K9848,J107),"")) -> 
J108: =ROWS(العملاء!$B$4:B20) -> 17 | K108: =IF(IFERROR(ISNUMBER(SEARCH(البحث!$N$2,العملاء!#REF!&" "&العملاء!#REF!&" "&العملاء!#REF!&" "&العملاء!#REF!)),""),J108,"") ->  | M108: =IF(البحث!$N$2="","",IFERROR(SMALL($K$4:$K9849,J108),"")) -> 
J109: =ROWS(العملاء!$B$4:B20) -> 17 | K109: =IF(IFERROR(ISNUMBER(SEARCH(البحث!$N$2,العملاء!#REF!&" "&العملاء!#REF!&" "&العملاء!#REF!&" "&العملاء!#REF!)),""),J109,"") ->  | M109: =IF(البحث!$N$2="","",IFERROR(SMALL($K$4:$K9850,J109),"")) -> 
J110: =ROWS(العملاء!$B$4:B20) -> 17 | K110: =IF(IFERROR(ISNUMBER(SEARCH(البحث!$N$2,العملاء!#REF!&" "&العملاء!#REF!&" "&العملاء!#REF!&" "&العملاء!#REF!)),""),J110,"") ->  | M110: =IF(البحث!$N$2="","",IFERROR(SMALL($K$4:$K9851,J110),"")) -> 
J111: =ROWS(العملاء!$B$4:B20) -> 17 | K111: =IF(IFERROR(ISNUMBER(SEARCH(البحث!$N$2,العملاء!#REF!&" "&العملاء!#REF!&" "&العملاء!#REF!&" "&العملاء!#REF!)),""),J111,"") ->  | M111: =IF(البحث!$N$2="","",IFERROR(SMALL($K$4:$K9852,J111),"")) -> 
J112: =ROWS(العملاء!$B$4:B20) -> 17 | K112: =IF(IFERROR(ISNUMBER(SEARCH(البحث!$N$2,العملاء!#REF!&" "&العملاء!#REF!&" "&العملاء!#REF!&" "&العملاء!#REF!)),""),J112,"") ->  | M112: =IF(البحث!$N$2="","",IFERROR(SMALL($K$4:$K9853,J112),"")) -> 
J113: =ROWS(العملاء!$B$4:B20) -> 17 | K113: =IF(IFERROR(ISNUMBER(SEARCH(البحث!$N$2,العملاء!#REF!&" "&العملاء!#REF!&" "&العملاء!#REF!&" "&العملاء!#REF!)),""),J113,"") ->  | M113: =IF(البحث!$N$2="","",IFERROR(SMALL($K$4:$K9854,J113),"")) -> 
J114: =ROWS(العملاء!$B$4:B20) -> 17 | K114: =IF(IFERROR(ISNUMBER(SEARCH(البحث!$N$2,العملاء!#REF!&" "&العملاء!#REF!&" "&العملاء!#REF!&" "&العملاء!#REF!)),""),J114,"") ->  | M114: =IF(البحث!$N$2="","",IFERROR(SMALL($K$4:$K9855,J114),"")) -> 
J115: =ROWS(العملاء!$B$4:B20) -> 17 | K115: =IF(IFERROR(ISNUMBER(SEARCH(البحث!$N$2,العملاء!#REF!&" "&العملاء!#REF!&" "&العملاء!#REF!&" "&العملاء!#REF!)),""),J115,"") ->  | M115: =IF(البحث!$N$2="","",IFERROR(SMALL($K$4:$K9856,J115),"")) -> 
J116: =ROWS(العملاء!$B$4:B20) -> 17 | K116: =IF(IFERROR(ISNUMBER(SEARCH(البحث!$N$2,العملاء!#REF!&" "&العملاء!#REF!&" "&العملاء!#REF!&" "&العملاء!#REF!)),""),J116,"") ->  | M116: =IF(البحث!$N$2="","",IFERROR(SMALL($K$4:$K9857,J116),"")) -> 
J117: =ROWS(العملاء!$B$4:B20) -> 17 | K117: =IF(IFERROR(ISNUMBER(SEARCH(البحث!$N$2,العملاء!#REF!&" "&العملاء!#REF!&" "&العملاء!#REF!&" "&العملاء!#REF!)),""),J117,"") ->  | M117: =IF(البحث!$N$2="","",IFERROR(SMALL($K$4:$K9858,J117),"")) -> 
J118: =ROWS(العملاء!$B$4:B20) -> 17 | K118: =IF(IFERROR(ISNUMBER(SEARCH(البحث!$N$2,العملاء!#REF!&" "&العملاء!#REF!&" "&العملاء!#REF!&" "&العملاء!#REF!)),""),J118,"") ->  | M118: =IF(البحث!$N$2="","",IFERROR(SMALL($K$4:$K9859,J118),"")) -> 
J119: =ROWS(العملاء!$B$4:B20) -> 17 | K119: =IF(IFERROR(ISNUMBER(SEARCH(البحث!$N$2,العملاء!#REF!&" "&العملاء!#REF!&" "&العملاء!#REF!&" "&العملاء!#REF!)),""),J119,"") ->  | M119: =IF(البحث!$N$2="","",IFERROR(SMALL($K$4:$K9860,J119),"")) -> 
J120: =ROWS(العملاء!$B$4:B20) -> 17 | K120: =IF(IFERROR(ISNUMBER(SEARCH(البحث!$N$2,العملاء!#REF!&" "&العملاء!#REF!&" "&العملاء!#REF!&" "&العملاء!#REF!)),""),J120,"") ->  | M120: =IF(البحث!$N$2="","",IFERROR(SMALL($K$4:$K9861,J120),"")) -> 
J121: =ROWS(العملاء!$B$4:B20) -> 17 | K121: =IF(IFERROR(ISNUMBER(SEARCH(البحث!$N$2,العملاء!#REF!&" "&العملاء!#REF!&" "&العملاء!#REF!&" "&العملاء!#REF!)),""),J121,"") ->  | M121: =IF(البحث!$N$2="","",IFERROR(SMALL($K$4:$K9862,J121),"")) -> 
J122: =ROWS(العملاء!$B$4:B20) -> 17 | K122: =IF(IFERROR(ISNUMBER(SEARCH(البحث!$N$2,العملاء!#REF!&" "&العملاء!#REF!&" "&العملاء!#REF!&" "&العملاء!#REF!)),""),J122,"") ->  | M122: =IF(البحث!$N$2="","",IFERROR(SMALL($K$4:$K9863,J122),"")) -> 
J123: =ROWS(العملاء!$B$4:B20) -> 17 | K123: =IF(IFERROR(ISNUMBER(SEARCH(البحث!$N$2,العملاء!#REF!&" "&العملاء!#REF!&" "&العملاء!#REF!&" "&العملاء!#REF!)),""),J123,"") ->  | M123: =IF(البحث!$N$2="","",IFERROR(SMALL($K$4:$K9864,J123),"")) -> 
J124: =ROWS(العملاء!$B$4:B20) -> 17 | K124: =IF(IFERROR(ISNUMBER(SEARCH(البحث!$N$2,العملاء!#REF!&" "&العملاء!#REF!&" "&العملاء!#REF!&" "&العملاء!#REF!)),""),J124,"") ->  | M124: =IF(البحث!$N$2="","",IFERROR(SMALL($K$4:$K9865,J124),"")) -> 
J125: =ROWS(العملاء!$B$4:B20) -> 17 | K125: =IF(IFERROR(ISNUMBER(SEARCH(البحث!$N$2,العملاء!#REF!&" "&العملاء!#REF!&" "&العملاء!#REF!&" "&العملاء!#REF!)),""),J125,"") ->  | M125: =IF(البحث!$N$2="","",IFERROR(SMALL($K$4:$K9866,J125),"")) -> 
J126: =ROWS(العملاء!$B$4:B20) -> 17 | K126: =IF(IFERROR(ISNUMBER(SEARCH(البحث!$N$2,العملاء!#REF!&" "&العملاء!#REF!&" "&العملاء!#REF!&" "&العملاء!#REF!)),""),J126,"") ->  | M126: =IF(البحث!$N$2="","",IFERROR(SMALL($K$4:$K9867,J126),"")) -> 
J127: =ROWS(العملاء!$B$4:B20) -> 17 | K127: =IF(IFERROR(ISNUMBER(SEARCH(البحث!$N$2,العملاء!#REF!&" "&العملاء!#REF!&" "&العملاء!#REF!&" "&العملاء!#REF!)),""),J127,"") ->  | M127: =IF(البحث!$N$2="","",IFERROR(SMALL($K$4:$K9868,J127),"")) -> 
J128: =ROWS(العملاء!$B$4:B20) -> 17 | K128: =IF(IFERROR(ISNUMBER(SEARCH(البحث!$N$2,العملاء!#REF!&" "&العملاء!#REF!&" "&العملاء!#REF!&" "&العملاء!#REF!)),""),J128,"") ->  | M128: =IF(البحث!$N$2="","",IFERROR(SMALL($K$4:$K9869,J128),"")) -> 
J129: =ROWS(العملاء!$B$4:B20) -> 17 | K129: =IF(IFERROR(ISNUMBER(SEARCH(البحث!$N$2,العملاء!#REF!&" "&العملاء!#REF!&" "&العملاء!#REF!&" "&العملاء!#REF!)),""),J129,"") ->  | M129: =IF(البحث!$N$2="","",IFERROR(SMALL($K$4:$K9870,J129),"")) -> 
J130: =ROWS(العملاء!$B$4:B20) -> 17 | K130: =IF(IFERROR(ISNUMBER(SEARCH(البحث!$N$2,العملاء!#REF!&" "&العملاء!#REF!&" "&العملاء!#REF!&" "&العملاء!#REF!)),""),J130,"") ->  | M130: =IF(البحث!$N$2="","",IFERROR(SMALL($K$4:$K9871,J130),"")) -> 
J131: =ROWS(العملاء!$B$4:B20) -> 17 | K131: =IF(IFERROR(ISNUMBER(SEARCH(البحث!$N$2,العملاء!#REF!&" "&العملاء!#REF!&" "&العملاء!#REF!&" "&العملاء!#REF!)),""),J131,"") ->  | M131: =IF(البحث!$N$2="","",IFERROR(SMALL($K$4:$K9872,J131),"")) -> 
J132: =ROWS(العملاء!$B$4:B20) -> 17 | K132: =IF(IFERROR(ISNUMBER(SEARCH(البحث!$N$2,العملاء!#REF!&" "&العملاء!#REF!&" "&العملاء!#REF!&" "&العملاء!#REF!)),""),J132,"") ->  | M132: =IF(البحث!$N$2="","",IFERROR(SMALL($K$4:$K9873,J132),"")) -> 
J133: =ROWS(العملاء!$B$4:B20) -> 17 | K133: =IF(IFERROR(ISNUMBER(SEARCH(البحث!$N$2,العملاء!#REF!&" "&العملاء!#REF!&" "&العملاء!#REF!&" "&العملاء!#REF!)),""),J133,"") ->  | M133: =IF(البحث!$N$2="","",IFERROR(SMALL($K$4:$K9874,J133),"")) -> 
J134: =ROWS(العملاء!$B$4:B20) -> 17 | K134: =IF(IFERROR(ISNUMBER(SEARCH(البحث!$N$2,العملاء!#REF!&" "&العملاء!#REF!&" "&العملاء!#REF!&" "&العملاء!#REF!)),""),J134,"") ->  | M134: =IF(البحث!$N$2="","",IFERROR(SMALL($K$4:$K9875,J134),"")) -> 
J135: =ROWS(العملاء!$B$4:B20) -> 17 | K135: =IF(IFERROR(ISNUMBER(SEARCH(البحث!$N$2,العملاء!#REF!&" "&العملاء!#REF!&" "&العملاء!#REF!&" "&العملاء!#REF!)),""),J135,"") ->  | M135: =IF(البحث!$N$2="","",IFERROR(SMALL($K$4:$K9876,J135),"")) -> 
J136: =ROWS(العملاء!$B$4:B20) -> 17 | K136: =IF(IFERROR(ISNUMBER(SEARCH(البحث!$N$2,العملاء!#REF!&" "&العملاء!#REF!&" "&العملاء!#REF!&" "&العملاء!#REF!)),""),J136,"") ->  | M136: =IF(البحث!$N$2="","",IFERROR(SMALL($K$4:$K9877,J136),"")) -> 
J137: =ROWS(العملاء!$B$4:B20) -> 17 | K137: =IF(IFERROR(ISNUMBER(SEARCH(البحث!$N$2,العملاء!#REF!&" "&العملاء!#REF!&" "&العملاء!#REF!&" "&العملاء!#REF!)),""),J137,"") ->  | M137: =IF(البحث!$N$2="","",IFERROR(SMALL($K$4:$K9878,J137),"")) -> 
J138: =ROWS(العملاء!$B$4:B20) -> 17 | K138: =IF(IFERROR(ISNUMBER(SEARCH(البحث!$N$2,العملاء!#REF!&" "&العملاء!#REF!&" "&العملاء!#REF!&" "&العملاء!#REF!)),""),J138,"") ->  | M138: =IF(البحث!$N$2="","",IFERROR(SMALL($K$4:$K9879,J138),"")) -> 
J139: =ROWS(العملاء!$B$4:B20) -> 17 | K139: =IF(IFERROR(ISNUMBER(SEARCH(البحث!$N$2,العملاء!#REF!&" "&العملاء!#REF!&" "&العملاء!#REF!&" "&العملاء!#REF!)),""),J139,"") ->  | M139: =IF(البحث!$N$2="","",IFERROR(SMALL($K$4:$K9880,J139),"")) -> 
J140: =ROWS(العملاء!$B$4:B20) -> 17 | K140: =IF(IFERROR(ISNUMBER(SEARCH(البحث!$N$2,العملاء!#REF!&" "&العملاء!#REF!&" "&العملاء!#REF!&" "&العملاء!#REF!)),""),J140,"") ->  | M140: =IF(البحث!$N$2="","",IFERROR(SMALL($K$4:$K9881,J140),"")) -> 
J141: =ROWS(العملاء!$B$4:B20) -> 17 | K141: =IF(IFERROR(ISNUMBER(SEARCH(البحث!$N$2,العملاء!#REF!&" "&العملاء!#REF!&" "&العملاء!#REF!&" "&العملاء!#REF!)),""),J141,"") ->  | M141: =IF(البحث!$N$2="","",IFERROR(SMALL($K$4:$K9882,J141),"")) -> 
J142: =ROWS(العملاء!$B$4:B20) -> 17 | K142: =IF(IFERROR(ISNUMBER(SEARCH(البحث!$N$2,العملاء!#REF!&" "&العملاء!#REF!&" "&العملاء!#REF!&" "&العملاء!#REF!)),""),J142,"") ->  | M142: =IF(البحث!$N$2="","",IFERROR(SMALL($K$4:$K9883,J142),"")) -> 
J143: =ROWS(العملاء!$B$4:B20) -> 17 | K143: =IF(IFERROR(ISNUMBER(SEARCH(البحث!$N$2,العملاء!#REF!&" "&العملاء!#REF!&" "&العملاء!#REF!&" "&العملاء!#REF!)),""),J143,"") ->  | M143: =IF(البحث!$N$2="","",IFERROR(SMALL($K$4:$K9884,J143),"")) -> 
J144: =ROWS(العملاء!$B$4:B20) -> 17 | K144: =IF(IFERROR(ISNUMBER(SEARCH(البحث!$N$2,العملاء!#REF!&" "&العملاء!#REF!&" "&العملاء!#REF!&" "&العملاء!#REF!)),""),J144,"") ->  | M144: =IF(البحث!$N$2="","",IFERROR(SMALL($K$4:$K9885,J144),"")) -> 
J145: =ROWS(العملاء!$B$4:B20) -> 17 | K145: =IF(IFERROR(ISNUMBER(SEARCH(البحث!$N$2,العملاء!#REF!&" "&العملاء!#REF!&" "&العملاء!#REF!&" "&العملاء!#REF!)),""),J145,"") ->  | M145: =IF(البحث!$N$2="","",IFERROR(SMALL($K$4:$K9886,J145),"")) -> 
J146: =ROWS(العملاء!$B$4:B20) -> 17 | K146: =IF(IFERROR(ISNUMBER(SEARCH(البحث!$N$2,العملاء!#REF!&" "&العملاء!#REF!&" "&العملاء!#REF!&" "&العملاء!#REF!)),""),J146,"") ->  | M146: =IF(البحث!$N$2="","",IFERROR(SMALL($K$4:$K9887,J146),"")) -> 
J147: =ROWS(العملاء!$B$4:B20) -> 17 | K147: =IF(IFERROR(ISNUMBER(SEARCH(البحث!$N$2,العملاء!#REF!&" "&العملاء!#REF!&" "&العملاء!#REF!&" "&العملاء!#REF!)),""),J147,"") ->  | M147: =IF(البحث!$N$2="","",IFERROR(SMALL($K$4:$K9888,J147),"")) -> 
J148: =ROWS(العملاء!$B$4:B20) -> 17 | K148: =IF(IFERROR(ISNUMBER(SEARCH(البحث!$N$2,العملاء!#REF!&" "&العملاء!#REF!&" "&العملاء!#REF!&" "&العملاء!#REF!)),""),J148,"") ->  | M148: =IF(البحث!$N$2="","",IFERROR(SMALL($K$4:$K9889,J148),"")) -> 
J149: =ROWS(العملاء!$B$4:B20) -> 17 | K149: =IF(IFERROR(ISNUMBER(SEARCH(البحث!$N$2,العملاء!#REF!&" "&العملاء!#REF!&" "&العملاء!#REF!&" "&العملاء!#REF!)),""),J149,"") ->  | M149: =IF(البحث!$N$2="","",IFERROR(SMALL($K$4:$K9890,J149),"")) -> 
J150: =ROWS(العملاء!$B$4:B20) -> 17 | K150: =IF(IFERROR(ISNUMBER(SEARCH(البحث!$N$2,العملاء!#REF!&" "&العملاء!#REF!&" "&العملاء!#REF!&" "&العملاء!#REF!)),""),J150,"") ->  | M150: =IF(البحث!$N$2="","",IFERROR(SMALL($K$4:$K9891,J150),"")) -> 
J151: =ROWS(العملاء!$B$4:B20) -> 17 | K151: =IF(IFERROR(ISNUMBER(SEARCH(البحث!$N$2,العملاء!#REF!&" "&العملاء!#REF!&" "&العملاء!#REF!&" "&العملاء!#REF!)),""),J151,"") ->  | M151: =IF(البحث!$N$2="","",IFERROR(SMALL($K$4:$K9892,J151),"")) -> 
J152: =ROWS(العملاء!$B$4:B20) -> 17 | K152: =IF(IFERROR(ISNUMBER(SEARCH(البحث!$N$2,العملاء!#REF!&" "&العملاء!#REF!&" "&العملاء!#REF!&" "&العملاء!#REF!)),""),J152,"") ->  | M152: =IF(البحث!$N$2="","",IFERROR(SMALL($K$4:$K9893,J152),"")) -> 
J153: =ROWS(العملاء!$B$4:B20) -> 17 | K153: =IF(IFERROR(ISNUMBER(SEARCH(البحث!$N$2,العملاء!#REF!&" "&العملاء!#REF!&" "&العملاء!#REF!&" "&العملاء!#REF!)),""),J153,"") ->  | M153: =IF(البحث!$N$2="","",IFERROR(SMALL($K$4:$K9894,J153),"")) -> 
J154: =ROWS(العملاء!$B$4:B20) -> 17 | K154: =IF(IFERROR(ISNUMBER(SEARCH(البحث!$N$2,العملاء!#REF!&" "&العملاء!#REF!&" "&العملاء!#REF!&" "&العملاء!#REF!)),""),J154,"") ->  | M154: =IF(البحث!$N$2="","",IFERROR(SMALL($K$4:$K9895,J154),"")) -> 
J155: =ROWS(العملاء!$B$4:B20) -> 17 | K155: =IF(IFERROR(ISNUMBER(SEARCH(البحث!$N$2,العملاء!#REF!&" "&العملاء!#REF!&" "&العملاء!#REF!&" "&العملاء!#REF!)),""),J155,"") ->  | M155: =IF(البحث!$N$2="","",IFERROR(SMALL($K$4:$K9896,J155),"")) -> 
J156: =ROWS(العملاء!$B$4:B20) -> 17 | K156: =IF(IFERROR(ISNUMBER(SEARCH(البحث!$N$2,العملاء!#REF!&" "&العملاء!#REF!&" "&العملاء!#REF!&" "&العملاء!#REF!)),""),J156,"") ->  | M156: =IF(البحث!$N$2="","",IFERROR(SMALL($K$4:$K9897,J156),"")) -> 
J157: =ROWS(العملاء!$B$4:B20) -> 17 | K157: =IF(IFERROR(ISNUMBER(SEARCH(البحث!$N$2,العملاء!#REF!&" "&العملاء!#REF!&" "&العملاء!#REF!&" "&العملاء!#REF!)),""),J157,"") ->  | M157: =IF(البحث!$N$2="","",IFERROR(SMALL($K$4:$K9898,J157),"")) -> 
J158: =ROWS(العملاء!$B$4:B20) -> 17 | K158: =IF(IFERROR(ISNUMBER(SEARCH(البحث!$N$2,العملاء!#REF!&" "&العملاء!#REF!&" "&العملاء!#REF!&" "&العملاء!#REF!)),""),J158,"") ->  | M158: =IF(البحث!$N$2="","",IFERROR(SMALL($K$4:$K9899,J158),"")) -> 
J159: =ROWS(العملاء!$B$4:B20) -> 17 | K159: =IF(IFERROR(ISNUMBER(SEARCH(البحث!$N$2,العملاء!#REF!&" "&العملاء!#REF!&" "&العملاء!#REF!&" "&العملاء!#REF!)),""),J159,"") ->  | M159: =IF(البحث!$N$2="","",IFERROR(SMALL($K$4:$K9900,J159),"")) -> 
J160: =ROWS(العملاء!$B$4:B20) -> 17 | K160: =IF(IFERROR(ISNUMBER(SEARCH(البحث!$N$2,العملاء!#REF!&" "&العملاء!#REF!&" "&العملاء!#REF!&" "&العملاء!#REF!)),""),J160,"") ->  | M160: =IF(البحث!$N$2="","",IFERROR(SMALL($K$4:$K9901,J160),"")) -> 
J161: =ROWS(العملاء!$B$4:B20) -> 17 | K161: =IF(IFERROR(ISNUMBER(SEARCH(البحث!$N$2,العملاء!#REF!&" "&العملاء!#REF!&" "&العملاء!#REF!&" "&العملاء!#REF!)),""),J161,"") ->  | M161: =IF(البحث!$N$2="","",IFERROR(SMALL($K$4:$K9902,J161),"")) -> 
J162: =ROWS(العملاء!$B$4:B20) -> 17 | K162: =IF(IFERROR(ISNUMBER(SEARCH(البحث!$N$2,العملاء!#REF!&" "&العملاء!#REF!&" "&العملاء!#REF!&" "&العملاء!#REF!)),""),J162,"") ->  | M162: =IF(البحث!$N$2="","",IFERROR(SMALL($K$4:$K9903,J162),"")) -> 
J163: =ROWS(العملاء!$B$4:B20) -> 17 | K163: =IF(IFERROR(ISNUMBER(SEARCH(البحث!$N$2,العملاء!#REF!&" "&العملاء!#REF!&" "&العملاء!#REF!&" "&العملاء!#REF!)),""),J163,"") ->  | M163: =IF(البحث!$N$2="","",IFERROR(SMALL($K$4:$K9904,J163),"")) -> 
J164: =ROWS(العملاء!$B$4:B20) -> 17 | K164: =IF(IFERROR(ISNUMBER(SEARCH(البحث!$N$2,العملاء!#REF!&" "&العملاء!#REF!&" "&العملاء!#REF!&" "&العملاء!#REF!)),""),J164,"") ->  | M164: =IF(البحث!$N$2="","",IFERROR(SMALL($K$4:$K9905,J164),"")) -> 
J165: =ROWS(العملاء!$B$4:B20) -> 17 | K165: =IF(IFERROR(ISNUMBER(SEARCH(البحث!$N$2,العملاء!#REF!&" "&العملاء!#REF!&" "&العملاء!#REF!&" "&العملاء!#REF!)),""),J165,"") ->  | M165: =IF(البحث!$N$2="","",IFERROR(SMALL($K$4:$K9906,J165),"")) -> 
J166: =ROWS(العملاء!$B$4:B20) -> 17 | K166: =IF(IFERROR(ISNUMBER(SEARCH(البحث!$N$2,العملاء!#REF!&" "&العملاء!#REF!&" "&العملاء!#REF!&" "&العملاء!#REF!)),""),J166,"") ->  | M166: =IF(البحث!$N$2="","",IFERROR(SMALL($K$4:$K9907,J166),"")) -> 
J167: =ROWS(العملاء!$B$4:B20) -> 17 | K167: =IF(IFERROR(ISNUMBER(SEARCH(البحث!$N$2,العملاء!#REF!&" "&العملاء!#REF!&" "&العملاء!#REF!&" "&العملاء!#REF!)),""),J167,"") ->  | M167: =IF(البحث!$N$2="","",IFERROR(SMALL($K$4:$K9908,J167),"")) -> 
J168: =ROWS(العملاء!$B$4:B20) -> 17 | K168: =IF(IFERROR(ISNUMBER(SEARCH(البحث!$N$2,العملاء!#REF!&" "&العملاء!#REF!&" "&العملاء!#REF!&" "&العملاء!#REF!)),""),J168,"") ->  | M168: =IF(البحث!$N$2="","",IFERROR(SMALL($K$4:$K9909,J168),"")) -> 
J169: =ROWS(العملاء!$B$4:B20) -> 17 | K169: =IF(IFERROR(ISNUMBER(SEARCH(البحث!$N$2,العملاء!#REF!&" "&العملاء!#REF!&" "&العملاء!#REF!&" "&العملاء!#REF!)),""),J169,"") ->  | M169: =IF(البحث!$N$2="","",IFERROR(SMALL($K$4:$K9910,J169),"")) -> 
J170: =ROWS(العملاء!$B$4:B20) -> 17 | K170: =IF(IFERROR(ISNUMBER(SEARCH(البحث!$N$2,العملاء!#REF!&" "&العملاء!#REF!&" "&العملاء!#REF!&" "&العملاء!#REF!)),""),J170,"") ->  | M170: =IF(البحث!$N$2="","",IFERROR(SMALL($K$4:$K9911,J170),"")) -> 
J171: =ROWS(العملاء!$B$4:B20) -> 17 | K171: =IF(IFERROR(ISNUMBER(SEARCH(البحث!$N$2,العملاء!#REF!&" "&العملاء!#REF!&" "&العملاء!#REF!&" "&العملاء!#REF!)),""),J171,"") ->  | M171: =IF(البحث!$N$2="","",IFERROR(SMALL($K$4:$K9912,J171),"")) -> 
J172: =ROWS(العملاء!$B$4:B20) -> 17 | K172: =IF(IFERROR(ISNUMBER(SEARCH(البحث!$N$2,العملاء!#REF!&" "&العملاء!#REF!&" "&العملاء!#REF!&" "&العملاء!#REF!)),""),J172,"") ->  | M172: =IF(البحث!$N$2="","",IFERROR(SMALL($K$4:$K9913,J172),"")) -> 
J173: =ROWS(العملاء!$B$4:B20) -> 17 | K173: =IF(IFERROR(ISNUMBER(SEARCH(البحث!$N$2,العملاء!#REF!&" "&العملاء!#REF!&" "&العملاء!#REF!&" "&العملاء!#REF!)),""),J173,"") ->  | M173: =IF(البحث!$N$2="","",IFERROR(SMALL($K$4:$K9914,J173),"")) -> 
J174: =ROWS(العملاء!$B$4:B20) -> 17 | K174: =IF(IFERROR(ISNUMBER(SEARCH(البحث!$N$2,العملاء!#REF!&" "&العملاء!#REF!&" "&العملاء!#REF!&" "&العملاء!#REF!)),""),J174,"") ->  | M174: =IF(البحث!$N$2="","",IFERROR(SMALL($K$4:$K9915,J174),"")) -> 
J175: =ROWS(العملاء!$B$4:B20) -> 17 | K175: =IF(IFERROR(ISNUMBER(SEARCH(البحث!$N$2,العملاء!#REF!&" "&العملاء!#REF!&" "&العملاء!#REF!&" "&العملاء!#REF!)),""),J175,"") ->  | M175: =IF(البحث!$N$2="","",IFERROR(SMALL($K$4:$K9916,J175),"")) -> 
J176: =ROWS(العملاء!$B$4:B20) -> 17 | K176: =IF(IFERROR(ISNUMBER(SEARCH(البحث!$N$2,العملاء!#REF!&" "&العملاء!#REF!&" "&العملاء!#REF!&" "&العملاء!#REF!)),""),J176,"") ->  | M176: =IF(البحث!$N$2="","",IFERROR(SMALL($K$4:$K9917,J176),"")) -> 
J177: =ROWS(العملاء!$B$4:B20) -> 17 | K177: =IF(IFERROR(ISNUMBER(SEARCH(البحث!$N$2,العملاء!#REF!&" "&العملاء!#REF!&" "&العملاء!#REF!&" "&العملاء!#REF!)),""),J177,"") ->  | M177: =IF(البحث!$N$2="","",IFERROR(SMALL($K$4:$K9918,J177),"")) -> 
J178: =ROWS(العملاء!$B$4:B20) -> 17 | K178: =IF(IFERROR(ISNUMBER(SEARCH(البحث!$N$2,العملاء!#REF!&" "&العملاء!#REF!&" "&العملاء!#REF!&" "&العملاء!#REF!)),""),J178,"") ->  | M178: =IF(البحث!$N$2="","",IFERROR(SMALL($K$4:$K9919,J178),"")) -> 
J179: =ROWS(العملاء!$B$4:B20) -> 17 | K179: =IF(IFERROR(ISNUMBER(SEARCH(البحث!$N$2,العملاء!#REF!&" "&العملاء!#REF!&" "&العملاء!#REF!&" "&العملاء!#REF!)),""),J179,"") ->  | M179: =IF(البحث!$N$2="","",IFERROR(SMALL($K$4:$K9920,J179),"")) -> 
J180: =ROWS(العملاء!$B$4:B20) -> 17 | K180: =IF(IFERROR(ISNUMBER(SEARCH(البحث!$N$2,العملاء!#REF!&" "&العملاء!#REF!&" "&العملاء!#REF!&" "&العملاء!#REF!)),""),J180,"") ->  | M180: =IF(البحث!$N$2="","",IFERROR(SMALL($K$4:$K9921,J180),"")) -> 
J181: =ROWS(العملاء!$B$4:B20) -> 17 | K181: =IF(IFERROR(ISNUMBER(SEARCH(البحث!$N$2,العملاء!#REF!&" "&العملاء!#REF!&" "&العملاء!#REF!&" "&العملاء!#REF!)),""),J181,"") ->  | M181: =IF(البحث!$N$2="","",IFERROR(SMALL($K$4:$K9922,J181),"")) -> 
J182: =ROWS(العملاء!$B$4:B20) -> 17 | K182: =IF(IFERROR(ISNUMBER(SEARCH(البحث!$N$2,العملاء!#REF!&" "&العملاء!#REF!&" "&العملاء!#REF!&" "&العملاء!#REF!)),""),J182,"") ->  | M182: =IF(البحث!$N$2="","",IFERROR(SMALL($K$4:$K9923,J182),"")) -> 
J183: =ROWS(العملاء!$B$4:B20) -> 17 | K183: =IF(IFERROR(ISNUMBER(SEARCH(البحث!$N$2,العملاء!#REF!&" "&العملاء!#REF!&" "&العملاء!#REF!&" "&العملاء!#REF!)),""),J183,"") ->  | M183: =IF(البحث!$N$2="","",IFERROR(SMALL($K$4:$K9924,J183),"")) -> 
J184: =ROWS(العملاء!$B$4:B20) -> 17 | K184: =IF(IFERROR(ISNUMBER(SEARCH(البحث!$N$2,العملاء!#REF!&" "&العملاء!#REF!&" "&العملاء!#REF!&" "&العملاء!#REF!)),""),J184,"") ->  | M184: =IF(البحث!$N$2="","",IFERROR(SMALL($K$4:$K9925,J184),"")) -> 
J185: =ROWS(العملاء!$B$4:B20) -> 17 | K185: =IF(IFERROR(ISNUMBER(SEARCH(البحث!$N$2,العملاء!#REF!&" "&العملاء!#REF!&" "&العملاء!#REF!&" "&العملاء!#REF!)),""),J185,"") ->  | M185: =IF(البحث!$N$2="","",IFERROR(SMALL($K$4:$K9926,J185),"")) -> 
J186: =ROWS(العملاء!$B$4:B20) -> 17 | K186: =IF(IFERROR(ISNUMBER(SEARCH(البحث!$N$2,العملاء!#REF!&" "&العملاء!#REF!&" "&العملاء!#REF!&" "&العملاء!#REF!)),""),J186,"") ->  | M186: =IF(البحث!$N$2="","",IFERROR(SMALL($K$4:$K9927,J186),"")) -> 
J187: =ROWS(العملاء!$B$4:B20) -> 17 | K187: =IF(IFERROR(ISNUMBER(SEARCH(البحث!$N$2,العملاء!#REF!&" "&العملاء!#REF!&" "&العملاء!#REF!&" "&العملاء!#REF!)),""),J187,"") ->  | M187: =IF(البحث!$N$2="","",IFERROR(SMALL($K$4:$K9928,J187),"")) -> 
J188: =ROWS(العملاء!$B$4:B20) -> 17 | K188: =IF(IFERROR(ISNUMBER(SEARCH(البحث!$N$2,العملاء!#REF!&" "&العملاء!#REF!&" "&العملاء!#REF!&" "&العملاء!#REF!)),""),J188,"") ->  | M188: =IF(البحث!$N$2="","",IFERROR(SMALL($K$4:$K9929,J188),"")) -> 
J189: =ROWS(العملاء!$B$4:B20) -> 17 | K189: =IF(IFERROR(ISNUMBER(SEARCH(البحث!$N$2,العملاء!#REF!&" "&العملاء!#REF!&" "&العملاء!#REF!&" "&العملاء!#REF!)),""),J189,"") ->  | M189: =IF(البحث!$N$2="","",IFERROR(SMALL($K$4:$K9930,J189),"")) -> 
J190: =ROWS(العملاء!$B$4:B20) -> 17 | K190: =IF(IFERROR(ISNUMBER(SEARCH(البحث!$N$2,العملاء!#REF!&" "&العملاء!#REF!&" "&العملاء!#REF!&" "&العملاء!#REF!)),""),J190,"") ->  | M190: =IF(البحث!$N$2="","",IFERROR(SMALL($K$4:$K9931,J190),"")) -> 
J191: =ROWS(العملاء!$B$4:B20) -> 17 | K191: =IF(IFERROR(ISNUMBER(SEARCH(البحث!$N$2,العملاء!#REF!&" "&العملاء!#REF!&" "&العملاء!#REF!&" "&العملاء!#REF!)),""),J191,"") ->  | M191: =IF(البحث!$N$2="","",IFERROR(SMALL($K$4:$K9932,J191),"")) -> 
J192: =ROWS(العملاء!$B$4:B20) -> 17 | K192: =IF(IFERROR(ISNUMBER(SEARCH(البحث!$N$2,العملاء!#REF!&" "&العملاء!#REF!&" "&العملاء!#REF!&" "&العملاء!#REF!)),""),J192,"") ->  | M192: =IF(البحث!$N$2="","",IFERROR(SMALL($K$4:$K9933,J192),"")) -> 
J193: =ROWS(العملاء!$B$4:B20) -> 17 | K193: =IF(IFERROR(ISNUMBER(SEARCH(البحث!$N$2,العملاء!#REF!&" "&العملاء!#REF!&" "&العملاء!#REF!&" "&العملاء!#REF!)),""),J193,"") ->  | M193: =IF(البحث!$N$2="","",IFERROR(SMALL($K$4:$K9934,J193),"")) -> 
J194: =ROWS(العملاء!$B$4:B20) -> 17 | K194: =IF(IFERROR(ISNUMBER(SEARCH(البحث!$N$2,العملاء!#REF!&" "&العملاء!#REF!&" "&العملاء!#REF!&" "&العملاء!#REF!)),""),J194,"") ->  | M194: =IF(البحث!$N$2="","",IFERROR(SMALL($K$4:$K9935,J194),"")) -> 
J195: =ROWS(العملاء!$B$4:B20) -> 17 | K195: =IF(IFERROR(ISNUMBER(SEARCH(البحث!$N$2,العملاء!#REF!&" "&العملاء!#REF!&" "&العملاء!#REF!&" "&العملاء!#REF!)),""),J195,"") ->  | M195: =IF(البحث!$N$2="","",IFERROR(SMALL($K$4:$K9936,J195),"")) -> 
J196: =ROWS(العملاء!$B$4:B20) -> 17 | K196: =IF(IFERROR(ISNUMBER(SEARCH(البحث!$N$2,العملاء!#REF!&" "&العملاء!#REF!&" "&العملاء!#REF!&" "&العملاء!#REF!)),""),J196,"") ->  | M196: =IF(البحث!$N$2="","",IFERROR(SMALL($K$4:$K9937,J196),"")) -> 
J197: =ROWS(العملاء!$B$4:B20) -> 17 | K197: =IF(IFERROR(ISNUMBER(SEARCH(البحث!$N$2,العملاء!#REF!&" "&العملاء!#REF!&" "&العملاء!#REF!&" "&العملاء!#REF!)),""),J197,"") ->  | M197: =IF(البحث!$N$2="","",IFERROR(SMALL($K$4:$K9938,J197),"")) -> 
J198: =ROWS(العملاء!$B$4:B20) -> 17 | K198: =IF(IFERROR(ISNUMBER(SEARCH(البحث!$N$2,العملاء!#REF!&" "&العملاء!#REF!&" "&العملاء!#REF!&" "&العملاء!#REF!)),""),J198,"") ->  | M198: =IF(البحث!$N$2="","",IFERROR(SMALL($K$4:$K9939,J198),"")) -> 
J199: =ROWS(العملاء!$B$4:B20) -> 17 | K199: =IF(IFERROR(ISNUMBER(SEARCH(البحث!$N$2,العملاء!#REF!&" "&العملاء!#REF!&" "&العملاء!#REF!&" "&العملاء!#REF!)),""),J199,"") ->  | M199: =IF(البحث!$N$2="","",IFERROR(SMALL($K$4:$K9940,J199),"")) -> 
J200: =ROWS(العملاء!$B$4:B20) -> 17 | K200: =IF(IFERROR(ISNUMBER(SEARCH(البحث!$N$2,العملاء!#REF!&" "&العملاء!#REF!&" "&العملاء!#REF!&" "&العملاء!#REF!)),""),J200,"") ->  | M200: =IF(البحث!$N$2="","",IFERROR(SMALL($K$4:$K9941,J200),"")) -> 
... 548 more rows

Sheet العملاء
A1: ادخل اسم العميل: | E1: تاريخ اليوم
B2: صفحة عملاء الاقساط | E2: =TODAY() -> 2019-01-10
A3: الرقم | B3: اســــم العمـــــــــــــــــــــــــــــــــــــيل | C3: العنوان | D3: البـــــــــــــــــــــــــــــــــــــــــــــــــيان | E3: تاريخ الشراء | F3: كاش | G3: مقدم | H3: الباقى | I3: المدة | J3: قيمة القسط | K3: اخر قسط | L3: الضامن | M3: حالة السداد | N3: اخر تاريخ سداد | O3: تاريخ الاستحقاق | P3: الباقى | Q3: تم السداد | R3: المسدد | S3: منذ
A4: 1 | B4: ناصر عبدالحليم السيد عبدالمجيد | C4: جرجا | D4: غ زانوسى7ك+2 انبوبة | E4: 2017-10-10 | F4: 2930 | G4: 500 | H4: 3160 | I4: 18 | J4: 200 | M4: =IF(S4="","",IF(S4>150,"يقدم للشكوى",+IF(S4>65,"متاخر جدا",+IF(S4>32,"متاخر ",+IF(S4>25,"اوشك",IF(S4<0,"لم يستحق","")))))) -> متاخر جدا | N4: =IFERROR(IF(IF(SUMIFS('قائمة سداد اقساط العملاء'!$E$4:$E$11161,'قائمة سداد اقساط العملاء'!$A$4:$A$11161,A4,'قائمة سداد اقساط العملاء'!$F$4:$F$11161,R4)<40179,"",SUMIFS('قائمة سداد اقساط العملاء'!$E$4:$E$11161,'قائمة سداد اقساط العملاء'!$A$4:$A$11161,A4,'قائمة سداد اقساط العملاء'!$F$4:$F$11161,R4))="",VLOOKUP(A4,$A$4:$E$4274,5,0),IF(SUMIFS('قائمة سداد اقساط العملاء'!$E$4:$E$11161,'قائمة سداد اقساط العملاء'!$A$4:$A$11161,A4,'قائمة سداد اقساط العملاء'!$F$4:$F$11161,R4)<40179,"",SUMIFS('قائمة سداد اقساط العملاء'!$E$4:$E$11161,'قائمة سداد اقساط العملاء'!$A$4:$A$11161,A4,'قائمة سداد اقساط العملاء'!$F$4:$F$11161,R4))),"") -> 2018-10-10T18:28:56.250 | O4: =IF(E4="","",IF(IFERROR(EDATE(E4,R4),"")="",E4+31,IFERROR(EDATE(E4,R4),""))) -> 2017-12-10 | P4: =IFERROR(H4-Q4,"") -> 2960 | Q4: =IF(R4="","",SUMIF('قائمة سداد اقساط العملاء'!$A$4:$A$11161,A4,'قائمة سداد اقساط العملاء'!$D$4:$D$11161)) -> 200 | R4: =IF(B4="","",(COUNTIF('قائمة سداد اقساط العملاء'!$A$2:$A$9915,A4))) -> 2 | S4: =IFERROR(IF(TODAY()-N4>2000,"",TODAY()-N4),"") -> 91.22990451
A5: 2 | B5: محمد احمد توفيق | C5: المحاسنة | D5: بوتجاز تليستار+تلفزيون | E5: 2017-06-06 | H5: 2000 | M5: متاخر جدا | N5: =IFERROR(IF(IF(SUMIFS('قائمة سداد اقساط العملاء'!$E$4:$E$11161,'قائمة سداد اقساط العملاء'!$A$4:$A$11161,A5,'قائمة سداد اقساط العملاء'!$F$4:$F$11161,R5)<40179,"",SUMIFS('قائمة سداد اقساط العملاء'!$E$4:$E$11161,'قائمة سداد اقساط العملاء'!$A$4:$A$11161,A5,'قائمة سداد اقساط العملاء'!$F$4:$F$11161,R5))="",VLOOKUP(A5,$A$4:$E$4274,5,0),IF(SUMIFS('قائمة سداد اقساط العملاء'!$E$4:$E$11161,'قائمة سداد اقساط العملاء'!$A$4:$A$11161,A5,'قائمة سداد اقساط العملاء'!$F$4:$F$11161,R5)<40179,"",SUMIFS('قائمة سداد اقساط العملاء'!$E$4:$E$11161,'قائمة سداد اقساط العملاء'!$A$4:$A$11161,A5,'قائمة سداد اقساط العملاء'!$F$4:$F$11161,R5))),"") -> 2018-10-10T18:29:38.710 | O5: =IF(E5="","",IF(IFERROR(EDATE(E5,R5),"")="",E5+31,IFERROR(EDATE(E5,R5),""))) -> 2017-08-06 | P5: 2000 | Q5: =IF(R5="","",SUMIF('قائمة سداد اقساط العملاء'!$A$4:$A$11161,A5,'قائمة سداد اقساط العملاء'!$D$4:$D$11161)) -> 0 | R5: =IF(B5="","",(COUNTIF('قائمة سداد اقساط العملاء'!$A$2:$A$9915,A5))) -> 2 | S5: =IFERROR(IF(TODAY()-N5>2000,"",TODAY()-N5),"") -> 91.22941308
A6: 3 | B6: محمد السيد على عباس | C6: كوم اشكيلو | D6: تليفون سامسونج | E6: 2017-05-05 | F6: 1900 | G6: 400 | H6: 1980 | I6: 12 | J6: 165 | L6: السيد على عباس | M6: يقدم للشكوى | N6: =IFERROR(IF(IF(SUMIFS('قائمة سداد اقساط العملاء'!$E$4:$E$11161,'قائمة سداد اقساط العملاء'!$A$4:$A$11161,A6,'قائمة سداد اقساط العملاء'!$F$4:$F$11161,R6)<40179,"",SUMIFS('قائمة سداد اقساط العملاء'!$E$4:$E$11161,'قائمة سداد اقساط العملاء'!$A$4:$A$11161,A6,'قائمة سداد اقساط العملاء'!$F$4:$F$11161,R6))="",VLOOKUP(A6,$A$4:$E$4274,5,0),IF(SUMIFS('قائمة سداد اقساط العملاء'!$E$4:$E$11161,'قائمة سداد اقساط العملاء'!$A$4:$A$11161,A6,'قائمة سداد اقساط العملاء'!$F$4:$F$11161,R6)<40179,"",SUMIFS('قائمة سداد اقساط العملاء'!$E$4:$E$11161,'قائمة سداد اقساط العملاء'!$A$4:$A$11161,A6,'قائمة سداد اقساط العملاء'!$F$4:$F$11161,R6))),"") -> 2017-05-05 | O6: 2017-05-05 | P6: 1980 | Q6: =IF(R6="","",SUMIF('قائمة سداد اقساط العملاء'!$A$4:$A$11161,A6,'قائمة سداد اقساط العملاء'!$D$4:$D$11161)) -> 0 | R6: =IF(B6="","",(COUNTIF('قائمة سداد اقساط العملاء'!$A$2:$A$9915,A6))) -> 0 | S6: 615
A7: 4 | B7: حسان معتمد محمد الزاهر | C7: كوم اشكيلو | D7: تليفون | E7: 2018-03-03 | F7: 1900 | G7: 500 | H7: 1800 | I7: 12 | J7: 150 | M7: متاخر جدا | N7: =IFERROR(IF(IF(SUMIFS('قائمة سداد اقساط العملاء'!$E$4:$E$11161,'قائمة سداد اقساط العملاء'!$A$4:$A$11161,A7,'قائمة سداد اقساط العملاء'!$F$4:$F$11161,R7)<40179,"",SUMIFS('قائمة سداد اقساط العملاء'!$E$4:$E$11161,'قائمة سداد اقساط العملاء'!$A$4:$A$11161,A7,'قائمة سداد اقساط العملاء'!$F$4:$F$11161,R7))="",VLOOKUP(A7,$A$4:$E$4274,5,0),IF(SUMIFS('قائمة سداد اقساط العملاء'!$E$4:$E$11161,'قائمة سداد اقساط العملاء'!$A$4:$A$11161,A7,'قائمة سداد اقساط العملاء'!$F$4:$F$11161,R7)<40179,"",SUMIFS('قائمة سداد اقساط العملاء'!$E$4:$E$11161,'قائمة سداد اقساط العملاء'!$A$4:$A$11161,A7,'قائمة سداد اقساط العملاء'!$F$4:$F$11161,R7))),"") -> 2018-10-10T18:29:16.220 | O7: 2018-07-03 | P7: 1200 | Q7: =IF(R7="","",SUMIF('قائمة سداد اقساط العملاء'!$A$4:$A$11161,A7,'قائمة سداد اقساط العملاء'!$D$4:$D$11161)) -> 600 | R7: =IF(B7="","",(COUNTIF('قائمة سداد اقساط العملاء'!$A$2:$A$9915,A7))) -> 4 | S7: 91.22967338
A8: 5 | B8: ناصر عبدالحليم السيد عبدالمجيد | C8: المحاسنة | D8: بوتجاز تليستار+تلفزيون ولوازمه | E8: 2017-06-06 | H8: 2000 | M8: يقدم للشكوى | N8: =IFERROR(IF(IF(SUMIFS('قائمة سداد اقساط العملاء'!$E$4:$E$11161,'قائمة سداد اقساط العملاء'!$A$4:$A$11161,A8,'قائمة سداد اقساط العملاء'!$F$4:$F$11161,R8)<40179,"",SUMIFS('قائمة سداد اقساط العملاء'!$E$4:$E$11161,'قائمة سداد اقساط العملاء'!$A$4:$A$11161,A8,'قائمة سداد اقساط العملاء'!$F$4:$F$11161,R8))="",VLOOKUP(A8,$A$4:$E$4274,5,0),IF(SUMIFS('قائمة سداد اقساط العملاء'!$E$4:$E$11161,'قائمة سداد اقساط العملاء'!$A$4:$A$11161,A8,'قائمة سداد اقساط العملاء'!$F$4:$F$11161,R8)<40179,"",SUMIFS('قائمة سداد اقساط العملاء'!$E$4:$E$11161,'قائمة سداد اقساط العملاء'!$A$4:$A$11161,A8,'قائمة سداد اقساط العملاء'!$F$4:$F$11161,R8))),"") -> 2017-06-06 | O8: 2017-06-06 | P8: 2000 | Q8: =IF(R8="","",SUMIF('قائمة سداد اقساط العملاء'!$A$4:$A$11161,A8,'قائمة سداد اقساط العملاء'!$D$4:$D$11161)) -> 0 | R8: =IF(B8="","",(COUNTIF('قائمة سداد اقساط العملاء'!$A$2:$A$9915,A8))) -> 0 | S8: 583
A9: 6 | B9: محمد احمد توفيق | C9: كوم اشكيلو | D9: تليفون | E9: 2018-07-03 | F9: 1900 | G9: 500 | H9: 1800 | I9: 12 | J9: 150 | M9: يقدم للشكوى | N9: =IFERROR(IF(IF(SUMIFS('قائمة سداد اقساط العملاء'!$E$4:$E$11161,'قائمة سداد اقساط العملاء'!$A$4:$A$11161,A9,'قائمة سداد اقساط العملاء'!$F$4:$F$11161,R9)<40179,"",SUMIFS('قائمة سداد اقساط العملاء'!$E$4:$E$11161,'قائمة سداد اقساط العملاء'!$A$4:$A$11161,A9,'قائمة سداد اقساط العملاء'!$F$4:$F$11161,R9))="",VLOOKUP(A9,$A$4:$E$4274,5,0),IF(SUMIFS('قائمة سداد اقساط العملاء'!$E$4:$E$11161,'قائمة سداد اقساط العملاء'!$A$4:$A$11161,A9,'قائمة سداد اقساط العملاء'!$F$4:$F$11161,R9)<40179,"",SUMIFS('قائمة سداد اقساط العملاء'!$E$4:$E$11161,'قائمة سداد اقساط العملاء'!$A$4:$A$11161,A9,'قائمة سداد اقساط العملاء'!$F$4:$F$11161,R9))),"") -> 2018-07-03 | O9: 2018-07-03 | P9: 1800 | Q9: =IF(R9="","",SUMIF('قائمة سداد اقساط العملاء'!$A$4:$A$11161,A9,'قائمة سداد اقساط العملاء'!$D$4:$D$11161)) -> 0 | R9: =IF(B9="","",(COUNTIF('قائمة سداد اقساط العملاء'!$A$2:$A$9915,A9))) -> 0 | S9: 191
A10: 7 | B10: ناصر عبدالحليم السيد عبدالمجيد | C10: جرجا | D10: غ زانوسى7ك+2 انبوبة | E10: 2018-08-10 | F10: 2930 | G10: 500 | H10: 3160 | I10: 18 | J10: 200 | M10: يقدم للشكوى | N10: =IFERROR(IF(IF(SUMIFS('قائمة سداد اقساط العملاء'!$E$4:$E$11161,'قائمة سداد اقساط العملاء'!$A$4:$A$11161,A10,'قائمة سداد اقساط العملاء'!$F$4:$F$11161,R10)<40179,"",SUMIFS('قائمة سداد اقساط العملاء'!$E$4:$E$11161,'قائمة سداد اقساط العملاء'!$A$4:$A$11161,A10,'قائمة سداد اقساط العملاء'!$F$4:$F$11161,R10))="",VLOOKUP(A10,$A$4:$E$4274,5,0),IF(SUMIFS('قائمة سداد اقساط العملاء'!$E$4:$E$11161,'قائمة سداد اقساط العملاء'!$A$4:$A$11161,A10,'قائمة سداد اقساط العملاء'!$F$4:$F$11161,R10)<40179,"",SUMIFS('قائمة سداد اقساط العملاء'!$E$4:$E$11161,'قائمة سداد اقساط العملاء'!$A$4:$A$11161,A10,'قائمة سداد اقساط العملاء'!$F$4:$F$11161,R10))),"") -> 2018-08-10 | O10: 2018-08-10 | P10: 3160 | Q10: =IF(R10="","",SUMIF('قائمة سداد اقساط العملاء'!$A$4:$A$11161,A10,'قائمة سداد اقساط العملاء'!$D$4:$D$11161)) -> 0 | R10: =IF(B10="","",(COUNTIF('قائمة سداد اقساط العملاء'!$A$2:$A$9915,A10))) -> 0 | S10: 153
M11: =IF(S11="","",IF(S11>150,"يقدم للشكوى",+IF(S11>65,"متاخر جدا",+IF(S11>32,"متاخر ",+IF(S11>25,"اوشك",IF(S11<0,"لم يستحق","")))))) ->  | N11: =IFERROR(IF(IF(SUMIFS('قائمة سداد اقساط العملاء'!$E$4:$E$11161,'قائمة سداد اقساط العملاء'!$A$4:$A$11161,A11,'قائمة سداد اقساط العملاء'!$F$4:$F$11161,R11)<40179,"",SUMIFS('قائمة سداد اقساط العملاء'!$E$4:$E$11161,'قائمة سداد اقساط العملاء'!$A$4:$A$11161,A11,'قائمة سداد اقساط العملاء'!$F$4:$F$11161,R11))="",VLOOKUP(A11,$A$4:$E$4274,5,0),IF(SUMIFS('قائمة سداد اقساط العملاء'!$E$4:$E$11161,'قائمة سداد اقساط العملاء'!$A$4:$A$11161,A11,'قائمة سداد اقساط العملاء'!$F$4:$F$11161,R11)<40179,"",SUMIFS('قائمة سداد اقساط العملاء'!$E$4:$E$11161,'قائمة سداد اقساط العملاء'!$A$4:$A$11161,A11,'قائمة سداد اقساط العملاء'!$F$4:$F$11161,R11))),"") ->  | Q11: =IF(R11="","",SUMIF('قائمة سداد اقساط العملاء'!$A$4:$A$11161,A11,'قائمة سداد اقساط العملاء'!$D$4:$D$11161)) ->  | R11: =IF(B11="","",(COUNTIF('قائمة سداد اقساط العملاء'!$A$2:$A$9915,A11))) -> 
N12: =IFERROR(IF(IF(SUMIFS('قائمة سداد اقساط العملاء'!$E$4:$E$11161,'قائمة سداد اقساط العملاء'!$A$4:$A$11161,A12,'قائمة سداد اقساط العملاء'!$F$4:$F$11161,R12)<40179,"",SUMIFS('قائمة سداد اقساط العملاء'!$E$4:$E$11161,'قائمة سداد اقساط العملاء'!$A$4:$A$11161,A12,'قائمة سداد اقساط العملاء'!$F$4:$F$11161,R12))="",VLOOKUP(A12,$A$4:$E$4274,5,0),IF(SUMIFS('قائمة سداد اقساط العملاء'!$E$4:$E$11161,'قائمة سداد اقساط العملاء'!$A$4:$A$11161,A12,'قائمة سداد اقساط العملاء'!$F$4:$F$11161,R12)<40179,"",SUMIFS('قائمة سداد اقساط العملاء'!$E$4:$E$11161,'قائمة سداد اقساط العملاء'!$A$4:$A$11161,A12,'قائمة سداد اقساط العملاء'!$F$4:$F$11161,R12))),"") ->  | Q12: =IF(R12="","",SUMIF('قائمة سداد اقساط العملاء'!$A$4:$A$11161,A12,'قائمة سداد اقساط العملاء'!$D$4:$D$11161)) ->  | R12: =IF(B12="","",(COUNTIF('قائمة سداد اقساط العملاء'!$A$2:$A$9915,A12))) -> 
N13: =IFERROR(IF(IF(SUMIFS('قائمة سداد اقساط العملاء'!$E$4:$E$11161,'قائمة سداد اقساط العملاء'!$A$4:$A$11161,A13,'قائمة سداد اقساط العملاء'!$F$4:$F$11161,R13)<40179,"",SUMIFS('قائمة سداد اقساط العملاء'!$E$4:$E$11161,'قائمة سداد اقساط العملاء'!$A$4:$A$11161,A13,'قائمة سداد اقساط العملاء'!$F$4:$F$11161,R13))="",VLOOKUP(A13,$A$4:$E$4274,5,0),IF(SUMIFS('قائمة سداد اقساط العملاء'!$E$4:$E$11161,'قائمة سداد اقساط العملاء'!$A$4:$A$11161,A13,'قائمة سداد اقساط العملاء'!$F$4:$F$11161,R13)<40179,"",SUMIFS('قائمة سداد اقساط العملاء'!$E$4:$E$11161,'قائمة سداد اقساط العملاء'!$A$4:$A$11161,A13,'قائمة سداد اقساط العملاء'!$F$4:$F$11161,R13))),"") ->  | Q13: =IF(R13="","",SUMIF('قائمة سداد اقساط العملاء'!$A$4:$A$11161,A13,'قائمة سداد اقساط العملاء'!$D$4:$D$11161)) ->  | R13: =IF(B13="","",(COUNTIF('قائمة سداد اقساط العملاء'!$A$2:$A$9915,A13))) -> 
N14: =IFERROR(IF(IF(SUMIFS('قائمة سداد اقساط العملاء'!$E$4:$E$11161,'قائمة سداد اقساط العملاء'!$A$4:$A$11161,A14,'قائمة سداد اقساط العملاء'!$F$4:$F$11161,R14)<40179,"",SUMIFS('قائمة سداد اقساط العملاء'!$E$4:$E$11161,'قائمة سداد اقساط العملاء'!$A$4:$A$11161,A14,'قائمة سداد اقساط العملاء'!$F$4:$F$11161,R14))="",VLOOKUP(A14,$A$4:$E$4274,5,0),IF(SUMIFS('قائمة سداد اقساط العملاء'!$E$4:$E$11161,'قائمة سداد اقساط العملاء'!$A$4:$A$11161,A14,'قائمة سداد اقساط العملاء'!$F$4:$F$11161,R14)<40179,"",SUMIFS('قائمة سداد اقساط العملاء'!$E$4:$E$11161,'قائمة سداد اقساط العملاء'!$A$4:$A$11161,A14,'قائمة سداد اقساط العملاء'!$F$4:$F$11161,R14))),"") ->  | Q14: =IF(R14="","",SUMIF('قائمة سداد اقساط العملاء'!$A$4:$A$11161,A14,'قائمة سداد اقساط العملاء'!$D$4:$D$11161)) ->  | R14: =IF(B14="","",(COUNTIF('قائمة سداد اقساط العملاء'!$A$2:$A$9915,A14))) -> 
N15: =IFERROR(IF(IF(SUMIFS('قائمة سداد اقساط العملاء'!$E$4:$E$11161,'قائمة سداد اقساط العملاء'!$A$4:$A$11161,A15,'قائمة سداد اقساط العملاء'!$F$4:$F$11161,R15)<40179,"",SUMIFS('قائمة سداد اقساط العملاء'!$E$4:$E$11161,'قائمة سداد اقساط العملاء'!$A$4:$A$11161,A15,'قائمة سداد اقساط العملاء'!$F$4:$F$11161,R15))="",VLOOKUP(A15,$A$4:$E$4274,5,0),IF(SUMIFS('قائمة سداد اقساط العملاء'!$E$4:$E$11161,'قائمة سداد اقساط العملاء'!$A$4:$A$11161,A15,'قائمة سداد اقساط العملاء'!$F$4:$F$11161,R15)<40179,"",SUMIFS('قائمة سداد اقساط العملاء'!$E$4:$E$11161,'قائمة سداد اقساط العملاء'!$A$4:$A$11161,A15,'قائمة سداد اقساط العملاء'!$F$4:$F$11161,R15))),"") ->  | Q15: =IF(R15="","",SUMIF('قائمة سداد اقساط العملاء'!$A$4:$A$11161,A15,'قائمة سداد اقساط العملاء'!$D$4:$D$11161)) ->  | R15: =IF(B15="","",(COUNTIF('قائمة سداد اقساط العملاء'!$A$2:$A$9915,A15))) -> 
N16: =IFERROR(IF(IF(SUMIFS('قائمة سداد اقساط العملاء'!$E$4:$E$11161,'قائمة سداد اقساط العملاء'!$A$4:$A$11161,A16,'قائمة سداد اقساط العملاء'!$F$4:$F$11161,R16)<40179,"",SUMIFS('قائمة سداد اقساط العملاء'!$E$4:$E$11161,'قائمة سداد اقساط العملاء'!$A$4:$A$11161,A16,'قائمة سداد اقساط العملاء'!$F$4:$F$11161,R16))="",VLOOKUP(A16,$A$4:$E$4274,5,0),IF(SUMIFS('قائمة سداد اقساط العملاء'!$E$4:$E$11161,'قائمة سداد اقساط العملاء'!$A$4:$A$11161,A16,'قائمة سداد اقساط العملاء'!$F$4:$F$11161,R16)<40179,"",SUMIFS('قائمة سداد اقساط العملاء'!$E$4:$E$11161,'قائمة سداد اقساط العملاء'!$A$4:$A$11161,A16,'قائمة سداد اقساط العملاء'!$F$4:$F$11161,R16))),"") ->  | Q16: =IF(R16="","",SUMIF('قائمة سداد اقساط العملاء'!$A$4:$A$11161,A16,'قائمة سداد اقساط العملاء'!$D$4:$D$11161)) ->  | R16: =IF(B16="","",(COUNTIF('قائمة سداد اقساط العملاء'!$A$2:$A$9915,A16))) -> 
N17: =IFERROR(IF(IF(SUMIFS('قائمة سداد اقساط العملاء'!$E$4:$E$11161,'قائمة سداد اقساط العملاء'!$A$4:$A$11161,A17,'قائمة سداد اقساط العملاء'!$F$4:$F$11161,R17)<40179,"",SUMIFS('قائمة سداد اقساط العملاء'!$E$4:$E$11161,'قائمة سداد اقساط العملاء'!$A$4:$A$11161,A17,'قائمة سداد اقساط العملاء'!$F$4:$F$11161,R17))="",VLOOKUP(A17,$A$4:$E$4274,5,0),IF(SUMIFS('قائمة سداد اقساط العملاء'!$E$4:$E$11161,'قائمة سداد اقساط العملاء'!$A$4:$A$11161,A17,'قائمة سداد اقساط العملاء'!$F$4:$F$11161,R17)<40179,"",SUMIFS('قائمة سداد اقساط العملاء'!$E$4:$E$11161,'قائمة سداد اقساط العملاء'!$A$4:$A$11161,A17,'قائمة سداد اقساط العملاء'!$F$4:$F$11161,R17))),"") ->  | Q17: =IF(R17="","",SUMIF('قائمة سداد اقساط العملاء'!$A$4:$A$11161,A17,'قائمة سداد اقساط العملاء'!$D$4:$D$11161)) ->  | R17: =IF(B17="","",(COUNTIF('قائمة سداد اقساط العملاء'!$A$2:$A$9915,A17))) -> 
N18: =IFERROR(IF(IF(SUMIFS('قائمة سداد اقساط العملاء'!$E$4:$E$11161,'قائمة سداد اقساط العملاء'!$A$4:$A$11161,A18,'قائمة سداد اقساط العملاء'!$F$4:$F$11161,R18)<40179,"",SUMIFS('قائمة سداد اقساط العملاء'!$E$4:$E$11161,'قائمة سداد اقساط العملاء'!$A$4:$A$11161,A18,'قائمة سداد اقساط العملاء'!$F$4:$F$11161,R18))="",VLOOKUP(A18,$A$4:$E$4274,5,0),IF(SUMIFS('قائمة سداد اقساط العملاء'!$E$4:$E$11161,'قائمة سداد اقساط العملاء'!$A$4:$A$11161,A18,'قائمة سداد اقساط العملاء'!$F$4:$F$11161,R18)<40179,"",SUMIFS('قائمة سداد اقساط العملاء'!$E$4:$E$11161,'قائمة سداد اقساط العملاء'!$A$4:$A$11161,A18,'قائمة سداد اقساط العملاء'!$F$4:$F$11161,R18))),"") ->  | Q18: =IF(R18="","",SUMIF('قائمة سداد اقساط العملاء'!$A$4:$A$11161,A18,'قائمة سداد اقساط العملاء'!$D$4:$D$11161)) ->  | R18: =IF(B18="","",(COUNTIF('قائمة سداد اقساط العملاء'!$A$2:$A$9915,A18))) -> 
N19: =IFERROR(IF(IF(SUMIFS('قائمة سداد اقساط العملاء'!$E$4:$E$11161,'قائمة سداد اقساط العملاء'!$A$4:$A$11161,A19,'قائمة سداد اقساط العملاء'!$F$4:$F$11161,R19)<40179,"",SUMIFS('قائمة سداد اقساط العملاء'!$E$4:$E$11161,'قائمة سداد اقساط العملاء'!$A$4:$A$11161,A19,'قائمة سداد اقساط العملاء'!$F$4:$F$11161,R19))="",VLOOKUP(A19,$A$4:$E$4274,5,0),IF(SUMIFS('قائمة سداد اقساط العملاء'!$E$4:$E$11161,'قائمة سداد اقساط العملاء'!$A$4:$A$11161,A19,'قائمة سداد اقساط العملاء'!$F$4:$F$11161,R19)<40179,"",SUMIFS('قائمة سداد اقساط العملاء'!$E$4:$E$11161,'قائمة سداد اقساط العملاء'!$A$4:$A$11161,A19,'قائمة سداد اقساط العملاء'!$F$4:$F$11161,R19))),"") ->  | Q19: =IF(R19="","",SUMIF('قائمة سداد اقساط العملاء'!$A$4:$A$11161,A19,'قائمة سداد اقساط العملاء'!$D$4:$D$11161)) ->  | R19: =IF(B19="","",(COUNTIF('قائمة سداد اقساط العملاء'!$A$2:$A$9915,A19))) -> 
N20: =IFERROR(IF(IF(SUMIFS('قائمة سداد اقساط العملاء'!$E$4:$E$11161,'قائمة سداد اقساط العملاء'!$A$4:$A$11161,A20,'قائمة سداد اقساط العملاء'!$F$4:$F$11161,R20)<40179,"",SUMIFS('قائمة سداد اقساط العملاء'!$E$4:$E$11161,'قائمة سداد اقساط العملاء'!$A$4:$A$11161,A20,'قائمة سداد اقساط العملاء'!$F$4:$F$11161,R20))="",VLOOKUP(A20,$A$4:$E$4274,5,0),IF(SUMIFS('قائمة سداد اقساط العملاء'!$E$4:$E$11161,'قائمة سداد اقساط العملاء'!$A$4:$A$11161,A20,'قائمة سداد اقساط العملاء'!$F$4:$F$11161,R20)<40179,"",SUMIFS('قائمة سداد اقساط العملاء'!$E$4:$E$11161,'قائمة سداد اقساط العملاء'!$A$4:$A$11161,A20,'قائمة سداد اقساط العملاء'!$F$4:$F$11161,R20))),"") ->  | Q20: =IF(R20="","",SUMIF('قائمة سداد اقساط العملاء'!$A$4:$A$11161,A20,'قائمة سداد اقساط العملاء'!$D$4:$D$11161)) ->  | R20: =IF(B20="","",(COUNTIF('قائمة سداد اقساط العملاء'!$A$2:$A$9915,A20))) -> 
F22: الكاش | G22: المقدمامات | H22: الباقى بعد المقدمات | J22: الاقساط الشهرى | O22: الباقى بعد السداد | Q22: تم سداده
F23: =SUM(F4:F21) -> 11560 | G23: =SUM(G4:G21) -> 2400 | H23: =SUM(H4:H21) -> 15900 | J23: =SUM(J4:J21) -> 865 | O23: =SUM(P4:P21) -> 15100 | Q23: =SUM(Q4:Q21) -> 800

Sheet قائمة سداد اقساط العملاء
B1: قائمة سداد أقساط العملاء | J1: 1
A2: رقم العميل | B2: الاســــــــــــــــــــــــــــــــــــــــــــــــــــــــــــــم | C2: البــــــــــــــــــــــــــــــــــــــــــــــــــــــــــــــــــــــــــــيان | D2: قيمة القسط | E2: تاريخ السداد | F2: القسط | G2: تاريخ الاستحقاق | H2: المدفوع | I2: الباقى | J2: 1
A3: 1 | B3: ناصر عبدالحليم السيد عبدالمجيد | C3: غ زانوسى7ك+2 انبوبة | D3: 200 | E3: 2018-10-10T18:28:33.440 | F3: 1 | G3: 2017-11-10 | H3: 200 | I3: 2960 | J3: 1
A4: 1 | B4: ناصر عبدالحليم السيد عبدالمجيد | C4: غ زانوسى7ك+2 انبوبة | D4: 200 | E4: 2018-10-10T18:28:56.250 | F4: 2 | G4: 2017-12-10 | H4: 200 | I4: 2960 | J4: 1
A5: 4 | B5: حسان معتمد محمد الزاهر | C5: تليفون | D5: 150 | E5: 2018-10-10T18:29:11.300 | F5: 1 | G5: 2018-04-03 | H5: 150 | I5: 1650 | J5: 1
A6: 4 | B6: حسان معتمد محمد الزاهر | C6: تليفون | D6: 150 | E6: 2018-10-10T18:29:13.800 | F6: 2 | G6: 2018-05-03 | H6: 300 | I6: 1500 | J6: 1
A7: 4 | B7: حسان معتمد محمد الزاهر | C7: تليفون | D7: 150 | E7: 2018-10-10T18:29:14.920 | F7: 3 | G7: 2018-06-03 | H7: 450 | I7: 1350 | J7: 1
A8: 4 | B8: حسان معتمد محمد الزاهر | C8: تليفون | D8: 150 | E8: 2018-10-10T18:29:16.220 | F8: 4 | G8: 2018-07-03 | H8: 600 | I8: 1200 | J8: 1
A9: 2 | B9: محمد احمد توفيق | C9: بوتجاز تليستار+تلفزيون ولوازمه | D9: 0 | E9: 2018-10-10T18:29:35.940 | F9: 1 | G9: 2017-07-06 | H9: 0 | I9: 2000 | J9: 1
A10: 2 | B10: محمد احمد توفيق | C10: بوتجاز تليستار+تلفزيون ولوازمه | D10: 0 | E10: 2018-10-10T18:29:38.710 | F10: 2 | G10: 2017-08-06 | H10: 0 | I10: 2000 | J10: 1
J11: 1
J4922: 1

Sheet الخالص

Sheet استعلام مختصر
B1: الكود | C1: 4 | D1: الباقى | E1: =IFERROR(J7-G1,0) -> 1200 | F1: تم سداد | G1: =IF($C$1="","",SUMIF('قائمة سداد اقساط العملاء'!$A$3:$A$9205,$C$1,'قائمة سداد اقساط العملاء'!$D$3:$D$9205)) -> 600
B2: الاسم | C2: =IFERROR(VLOOKUP($C$1,العملاء!$A$4:$B$14274,2,FALSE),"") -> حسان معتمد محمد الزاهر
B3: البيان | C3: =IFERROR(VLOOKUP($C$1,العملاء!$A$4:$D$14274,4,FALSE),"") -> تليفون
B4: القسط | C4: القيمة | D4: تاريخ السداد | E4: تاريخ الستحقاق | F4: تفصيل المدفوع | G4: تفصيل الباقى | I4: الحساب المفصل للعميل
B5: =IF(1>$J$10,"",1) -> 1 | C5: =IF(B5="","",SUMIFS('قائمة سداد اقساط العملاء'!$D$3:$D$9205,'قائمة سداد اقساط العملاء'!$A$3:$A$9205,$C$1,'قائمة سداد اقساط العملاء'!$F$3:$F$9205,B5)) -> 150 | D5: =IF(B5="","",SUMIFS('قائمة سداد اقساط العملاء'!$E$3:$E$9205,'قائمة سداد اقساط العملاء'!$A$3:$A$9205,$C$1,'قائمة سداد اقساط العملاء'!$F$3:$F$9205,B5)) -> 2018-10-10T18:29:11.300 | E5: =IF(B5="","",SUMIFS('قائمة سداد اقساط العملاء'!$G$3:$G$9205,'قائمة سداد اقساط العملاء'!$A$3:$A$9205,$C$1,'قائمة سداد اقساط العملاء'!$F$3:$F$9205,B5)) -> 2018-04-03 | F5: =IF(B5="","",SUM(C5)) -> 150 | G5: =IF(B5="","",J7-F5) -> 1650 | I5: كاش | J5: =IFERROR(VLOOKUP($C$1,العملاء!$A$4:$F$14274,6,FALSE),"") -> 1900
B6: =IFERROR(IF(B5+1>$J$10,"",B5+1),"") -> 2 | C6: =IF(B6="","",SUMIFS('قائمة سداد اقساط العملاء'!$D$3:$D$9205,'قائمة سداد اقساط العملاء'!$A$3:$A$9205,$C$1,'قائمة سداد اقساط العملاء'!$F$3:$F$9205,B6)) -> 150 | D6: =IF(B6="","",SUMIFS('قائمة سداد اقساط العملاء'!$E$3:$E$9205,'قائمة سداد اقساط العملاء'!$A$3:$A$9205,$C$1,'قائمة سداد اقساط العملاء'!$F$3:$F$9205,B6)) -> 2018-10-10T18:29:13.800 | E6: =IF(B6="","",SUMIFS('قائمة سداد اقساط العملاء'!$G$3:$G$9205,'قائمة سداد اقساط العملاء'!$A$3:$A$9205,$C$1,'قائمة سداد اقساط العملاء'!$F$3:$F$9205,B6)) -> 2018-05-03 | F6: =IF(B6="","",SUM($C$5:C6)) -> 300 | G6: =IF(B6="","",$J$7-F6) -> 1500 | I6: مقدم | J6: =IFERROR(VLOOKUP($C$1,العملاء!$A$4:$G$14274,7,FALSE),"") -> 500
B7: 3 | C7: =IF(B7="","",SUMIFS('قائمة سداد اقساط العملاء'!$D$3:$D$9205,'قائمة سداد اقساط العملاء'!$A$3:$A$9205,$C$1,'قائمة سداد اقساط العملاء'!$F$3:$F$9205,B7)) -> 150 | D7: =IF(B7="","",SUMIFS('قائمة سداد اقساط العملاء'!$E$3:$E$9205,'قائمة سداد اقساط العملاء'!$A$3:$A$9205,$C$1,'قائمة سداد اقساط العملاء'!$F$3:$F$9205,B7)) -> 2018-10-10T18:29:14.920 | E7: =IF(B7="","",SUMIFS('قائمة سداد اقساط العملاء'!$G$3:$G$9205,'قائمة سداد اقساط العملاء'!$A$3:$A$9205,$C$1,'قائمة سداد اقساط العملاء'!$F$3:$F$9205,B7)) -> 2018-06-03 | F7: =IF(B7="","",SUM($C$5:C7)) -> 450 | G7: 1350 | I7: الباقى بالتقسيط | J7: =IFERROR(VLOOKUP($C$1,العملاء!$A$4:$H$14274,8,FALSE),"") -> 1800
B8: 4 | C8: =IF(B8="","",SUMIFS('قائمة سداد اقساط العملاء'!$D$3:$D$9205,'قائمة سداد اقساط العملاء'!$A$3:$A$9205,$C$1,'قائمة سداد اقساط العملاء'!$F$3:$F$9205,B8)) -> 150 | D8: =IF(B8="","",SUMIFS('قائمة سداد اقساط العملاء'!$E$3:$E$9205,'قائمة سداد اقساط العملاء'!$A$3:$A$9205,$C$1,'قائمة سداد اقساط العملاء'!$F$3:$F$9205,B8)) -> 2018-10-10T18:29:16.220 | E8: =IF(B8="","",SUMIFS('قائمة سداد اقساط العملاء'!$G$3:$G$9205,'قائمة سداد اقساط العملاء'!$A$3:$A$9205,$C$1,'قائمة سداد اقساط العملاء'!$F$3:$F$9205,B8)) -> 2018-07-03 | F8: =IF(B8="","",SUM($C$5:C8)) -> 600 | G8: 1200
C9: =IF(B9="","",SUMIFS('قائمة سداد اقساط العملاء'!$D$3:$D$9205,'قائمة سداد اقساط العملاء'!$A$3:$A$9205,$C$1,'قائمة سداد اقساط العملاء'!$F$3:$F$9205,B9)) ->  | D9: =IF(B9="","",SUMIFS('قائمة سداد اقساط العملاء'!$E$3:$E$9205,'قائمة سداد اقساط العملاء'!$A$3:$A$9205,$C$1,'قائمة سداد اقساط العملاء'!$F$3:$F$9205,B9)) ->  | E9: =IF(B9="","",SUMIFS('قائمة سداد اقساط العملاء'!$G$3:$G$9205,'قائمة سداد اقساط العملاء'!$A$3:$A$9205,$C$1,'قائمة سداد اقساط العملاء'!$F$3:$F$9205,B9)) ->  | F9: =IF(B9="","",SUM($C$5:C9)) ->  | I9: مدة التقسيط | J9: =IFERROR(VLOOKUP($C$1,العملاء!$A$4:$I$14274,9,FALSE),"") -> 12
C10: =IF(B10="","",SUMIFS('قائمة سداد اقساط العملاء'!$D$3:$D$9205,'قائمة سداد اقساط العملاء'!$A$3:$A$9205,$C$1,'قائمة سداد اقساط العملاء'!$F$3:$F$9205,B10)) ->  | D10: =IF(B10="","",SUMIFS('قائمة سداد اقساط العملاء'!$E$3:$E$9205,'قائمة سداد اقساط العملاء'!$A$3:$A$9205,$C$1,'قائمة سداد اقساط العملاء'!$F$3:$F$9205,B10)) ->  | E10: =IF(B10="","",SUMIFS('قائمة سداد اقساط العملاء'!$G$3:$G$9205,'قائمة سداد اقساط العملاء'!$A$3:$A$9205,$C$1,'قائمة سداد اقساط العملاء'!$F$3:$F$9205,B10)) ->  | F10: =IF(B10="","",SUM($C$5:C10)) ->  | I10: عدد الشهور المسددة | J10: =IFERROR(COUNTIF('قائمة سداد اقساط العملاء'!$A$3:$A$9205,$C$1),0) -> 4
C11: =IF(B11="","",SUMIFS('قائمة سداد اقساط العملاء'!$D$3:$D$9205,'قائمة سداد اقساط العملاء'!$A$3:$A$9205,$C$1,'قائمة سداد اقساط العملاء'!$F$3:$F$9205,B11)) ->  | D11: =IF(B11="","",SUMIFS('قائمة سداد اقساط العملاء'!$E$3:$E$9205,'قائمة سداد اقساط العملاء'!$A$3:$A$9205,$C$1,'قائمة سداد اقساط العملاء'!$F$3:$F$9205,B11)) ->  | E11: =IF(B11="","",SUMIFS('قائمة سداد اقساط العملاء'!$G$3:$G$9205,'قائمة سداد اقساط العملاء'!$A$3:$A$9205,$C$1,'قائمة سداد اقساط العملاء'!$F$3:$F$9205,B11)) ->  | F11: =IF(B11="","",SUM($C$5:C11)) ->  | I11: قيمة القسط | J11: =IFERROR(VLOOKUP($C$1,العملاء!$A$4:$J$14274,10,FALSE),"") -> 150
C12: =IF(B12="","",SUMIFS('قائمة سداد اقساط العملاء'!$D$3:$D$9205,'قائمة سداد اقساط العملاء'!$A$3:$A$9205,$C$1,'قائمة سداد اقساط العملاء'!$F$3:$F$9205,B12)) ->  | D12: =IF(B12="","",SUMIFS('قائمة سداد اقساط العملاء'!$E$3:$E$9205,'قائمة سداد اقساط العملاء'!$A$3:$A$9205,$C$1,'قائمة سداد اقساط العملاء'!$F$3:$F$9205,B12)) ->  | E12: =IF(B12="","",SUMIFS('قائمة سداد اقساط العملاء'!$G$3:$G$9205,'قائمة سداد اقساط العملاء'!$A$3:$A$9205,$C$1,'قائمة سداد اقساط العملاء'!$F$3:$F$9205,B12)) ->  | F12: =IF(B12="","",SUM($C$5:C12)) ->  | I12: تاريخ الشراء | J12: =IFERROR(VLOOKUP($C$1,العملاء!$A$4:$E$9274,5,0),"") -> 2018-03-03
C13: =IF(B13="","",SUMIFS('قائمة سداد اقساط العملاء'!$D$3:$D$9205,'قائمة سداد اقساط العملاء'!$A$3:$A$9205,$C$1,'قائمة سداد اقساط العملاء'!$F$3:$F$9205,B13)) ->  | D13: =IF(B13="","",SUMIFS('قائمة سداد اقساط العملاء'!$E$3:$E$9205,'قائمة سداد اقساط العملاء'!$A$3:$A$9205,$C$1,'قائمة سداد اقساط العملاء'!$F$3:$F$9205,B13)) ->  | E13: =IF(B13="","",SUMIFS('قائمة سداد اقساط العملاء'!$G$3:$G$9205,'قائمة سداد اقساط العملاء'!$A$3:$A$9205,$C$1,'قائمة سداد اقساط العملاء'!$F$3:$F$9205,B13)) ->  | F13: =IF(B13="","",SUM($C$5:C13)) ->  | I13: الانتهاء الافتراضى فى | J13: =IFERROR(J12+30*13,"") -> 2019-03-28
C14: =IF(B14="","",SUMIFS('قائمة سداد اقساط العملاء'!$D$3:$D$9205,'قائمة سداد اقساط العملاء'!$A$3:$A$9205,$C$1,'قائمة سداد اقساط العملاء'!$F$3:$F$9205,B14)) ->  | D14: =IF(B14="","",SUMIFS('قائمة سداد اقساط العملاء'!$E$3:$E$9205,'قائمة سداد اقساط العملاء'!$A$3:$A$9205,$C$1,'قائمة سداد اقساط العملاء'!$F$3:$F$9205,B14)) ->  | E14: =IF(B14="","",SUMIFS('قائمة سداد اقساط العملاء'!$G$3:$G$9205,'قائمة سداد اقساط العملاء'!$A$3:$A$9205,$C$1,'قائمة سداد اقساط العملاء'!$F$3:$F$9205,B14)) ->  | F14: =IF(B14="","",SUM($C$5:C14)) -> 
C15: =IF(B15="","",SUMIFS('قائمة سداد اقساط العملاء'!$D$3:$D$9205,'قائمة سداد اقساط العملاء'!$A$3:$A$9205,$C$1,'قائمة سداد اقساط العملاء'!$F$3:$F$9205,B15)) ->  | D15: =IF(B15="","",SUMIFS('قائمة سداد اقساط العملاء'!$E$3:$E$9205,'قائمة سداد اقساط العملاء'!$A$3:$A$9205,$C$1,'قائمة سداد اقساط العملاء'!$F$3:$F$9205,B15)) ->  | E15: =IF(B15="","",SUMIFS('قائمة سداد اقساط العملاء'!$G$3:$G$9205,'قائمة سداد اقساط العملاء'!$A$3:$A$9205,$C$1,'قائمة سداد اقساط العملاء'!$F$3:$F$9205,B15)) ->  | F15: =IF(B15="","",SUM($C$5:C15)) -> 
C16: =IF(B16="","",SUMIFS('قائمة سداد اقساط العملاء'!$D$3:$D$9205,'قائمة سداد اقساط العملاء'!$A$3:$A$9205,$C$1,'قائمة سداد اقساط العملاء'!$F$3:$F$9205,B16)) ->  | D16: =IF(B16="","",SUMIFS('قائمة سداد اقساط العملاء'!$E$3:$E$9205,'قائمة سداد اقساط العملاء'!$A$3:$A$9205,$C$1,'قائمة سداد اقساط العملاء'!$F$3:$F$9205,B16)) ->  | E16: =IF(B16="","",SUMIFS('قائمة سداد اقساط العملاء'!$G$3:$G$9205,'قائمة سداد اقساط العملاء'!$A$3:$A$9205,$C$1,'قائمة سداد اقساط العملاء'!$F$3:$F$9205,B16)) ->  | F16: =IF(B16="","",SUM($C$5:C16)) -> 
C17: =IF(B17="","",SUMIFS('قائمة سداد اقساط العملاء'!$D$3:$D$9205,'قائمة سداد اقساط العملاء'!$A$3:$A$9205,$C$1,'قائمة سداد اقساط العملاء'!$F$3:$F$9205,B17)) ->  | D17: =IF(B17="","",SUMIFS('قائمة سداد اقساط العملاء'!$E$3:$E$9205,'قائمة سداد اقساط العملاء'!$A$3:$A$9205,$C$1,'قائمة سداد اقساط العملاء'!$F$3:$F$9205,B17)) ->  | E17: =IF(B17="","",SUMIFS('قائمة سداد اقساط العملاء'!$G$3:$G$9205,'قائمة سداد اقساط العملاء'!$A$3:$A$9205,$C$1,'قائمة سداد اقساط العملاء'!$F$3:$F$9205,B17)) ->  | F17: =IF(B17="","",SUM($C$5:C17)) -> 
C18: =IF(B18="","",SUMIFS('قائمة سداد اقساط العملاء'!$D$3:$D$9205,'قائمة سداد اقساط العملاء'!$A$3:$A$9205,$C$1,'قائمة سداد اقساط العملاء'!$F$3:$F$9205,B18)) ->  | D18: =IF(B18="","",SUMIFS('قائمة سداد اقساط العملاء'!$E$3:$E$9205,'قائمة سداد اقساط العملاء'!$A$3:$A$9205,$C$1,'قائمة سداد اقساط العملاء'!$F$3:$F$9205,B18)) ->  | E18: =IF(B18="","",SUMIFS('قائمة سداد اقساط العملاء'!$G$3:$G$9205,'قائمة سداد اقساط العملاء'!$A$3:$A$9205,$C$1,'قائمة سداد اقساط العملاء'!$F$3:$F$9205,B18)) ->  | F18: =IF(B18="","",SUM($C$5:C18)) -> 
C19: =IF(B19="","",SUMIFS('قائمة سداد اقساط العملاء'!$D$3:$D$9205,'قائمة سداد اقساط العملاء'!$A$3:$A$9205,$C$1,'قائمة سداد اقساط العملاء'!$F$3:$F$9205,B19)) ->  | D19: =IF(B19="","",SUMIFS('قائمة سداد اقساط العملاء'!$E$3:$E$9205,'قائمة سداد اقساط العملاء'!$A$3:$A$9205,$C$1,'قائمة سداد اقساط العملاء'!$F$3:$F$9205,B19)) ->  | E19: =IF(B19="","",SUMIFS('قائمة سداد اقساط العملاء'!$G$3:$G$9205,'قائمة سداد اقساط العملاء'!$A$3:$A$9205,$C$1,'قائمة سداد اقساط العملاء'!$F$3:$F$9205,B19)) ->  | F19: =IF(B19="","",SUM($C$5:C19)) -> 
C20: =IF(B20="","",SUMIFS('قائمة سداد اقساط العملاء'!$D$3:$D$9205,'قائمة سداد اقساط العملاء'!$A$3:$A$9205,$C$1,'قائمة سداد اقساط العملاء'!$F$3:$F$9205,B20)) ->  | D20: =IF(B20="","",SUMIFS('قائمة سداد اقساط العملاء'!$E$3:$E$9205,'قائمة سداد اقساط العملاء'!$A$3:$A$9205,$C$1,'قائمة سداد اقساط العملاء'!$F$3:$F$9205,B20)) ->  | E20: =IF(B20="","",SUMIFS('قائمة سداد اقساط العملاء'!$G$3:$G$9205,'قائمة سداد اقساط العملاء'!$A$3:$A$9205,$C$1,'قائمة سداد اقساط العملاء'!$F$3:$F$9205,B20)) ->  | F20: =IF(B20="","",SUM($C$5:C20)) -> 
C21: =IF(B21="","",SUMIFS('قائمة سداد اقساط العملاء'!$D$3:$D$9205,'قائمة سداد اقساط العملاء'!$A$3:$A$9205,$C$1,'قائمة سداد اقساط العملاء'!$F$3:$F$9205,B21)) ->  | D21: =IF(B21="","",SUMIFS('قائمة سداد اقساط العملاء'!$E$3:$E$9205,'قائمة سداد اقساط العملاء'!$A$3:$A$9205,$C$1,'قائمة سداد اقساط العملاء'!$F$3:$F$9205,B21)) ->  | E21: =IF(B21="","",SUMIFS('قائمة سداد اقساط العملاء'!$G$3:$G$9205,'قائمة سداد اقساط العملاء'!$A$3:$A$9205,$C$1,'قائمة سداد اقساط العملاء'!$F$3:$F$9205,B21)) ->  | F21: =IF(B21="","",SUM($C$5:C21)) -> 
C22: =IF(B22="","",SUMIFS('قائمة سداد اقساط العملاء'!$D$3:$D$9205,'قائمة سداد اقساط العملاء'!$A$3:$A$9205,$C$1,'قائمة سداد اقساط العملاء'!$F$3:$F$9205,B22)) ->  | D22: =IF(B22="","",SUMIFS('قائمة سداد اقساط العملاء'!$E$3:$E$9205,'قائمة سداد اقساط العملاء'!$A$3:$A$9205,$C$1,'قائمة سداد اقساط العملاء'!$F$3:$F$9205,B22)) ->  | E22: =IF(B22="","",SUMIFS('قائمة سداد اقساط العملاء'!$G$3:$G$9205,'قائمة سداد اقساط العملاء'!$A$3:$A$9205,$C$1,'قائمة سداد اقساط العملاء'!$F$3:$F$9205,B22)) ->  | F22: =IF(B22="","",SUM($C$5:C22)) -> 
C23: =IF(B23="","",SUMIFS('قائمة سداد اقساط العملاء'!$D$3:$D$9205,'قائمة سداد اقساط العملاء'!$A$3:$A$9205,$C$1,'قائمة سداد اقساط العملاء'!$F$3:$F$9205,B23)) ->  | D23: =IF(B23="","",SUMIFS('قائمة سداد اقساط العملاء'!$E$3:$E$9205,'قائمة سداد اقساط العملاء'!$A$3:$A$9205,$C$1,'قائمة سداد اقساط العملاء'!$F$3:$F$9205,B23)) ->  | E23: =IF(B23="","",SUMIFS('قائمة سداد اقساط العملاء'!$G$3:$G$9205,'قائمة سداد اقساط العملاء'!$A$3:$A$9205,$C$1,'قائمة سداد اقساط العملاء'!$F$3:$F$9205,B23)) ->  | F23: =IF(B23="","",SUM($C$5:C23)) -> 
C24: =IF(B24="","",SUMIFS('قائمة سداد اقساط العملاء'!$D$3:$D$9205,'قائمة سداد اقساط العملاء'!$A$3:$A$9205,$C$1,'قائمة سداد اقساط العملاء'!$F$3:$F$9205,B24)) ->  | D24: =IF(B24="","",SUMIFS('قائمة سداد اقساط العملاء'!$E$3:$E$9205,'قائمة سداد اقساط العملاء'!$A$3:$A$9205,$C$1,'قائمة سداد اقساط العملاء'!$F$3:$F$9205,B24)) ->  | E24: =IF(B24="","",SUMIFS('قائمة سداد اقساط العملاء'!$G$3:$G$9205,'قائمة سداد اقساط العملاء'!$A$3:$A$9205,$C$1,'قائمة سداد اقساط العملاء'!$F$3:$F$9205,B24)) ->  | F24: =IF(B24="","",SUM($C$5:C24)) -> 
C25: =IF(B25="","",SUMIFS('قائمة سداد اقساط العملاء'!$D$3:$D$9205,'قائمة سداد اقساط العملاء'!$A$3:$A$9205,$C$1,'قائمة سداد اقساط العملاء'!$F$3:$F$9205,B25)) ->  | D25: =IF(B25="","",SUMIFS('قائمة سداد اقساط العملاء'!$E$3:$E$9205,'قائمة سداد اقساط العملاء'!$A$3:$A$9205,$C$1,'قائمة سداد اقساط العملاء'!$F$3:$F$9205,B25)) ->  | E25: =IF(B25="","",SUMIFS('قائمة سداد اقساط العملاء'!$G$3:$G$9205,'قائمة سداد اقساط العملاء'!$A$3:$A$9205,$C$1,'قائمة سداد اقساط العملاء'!$F$3:$F$9205,B25)) ->  | F25: =IF(B25="","",SUM($C$5:C25)) -> 
C26: =IF(B26="","",SUMIFS('قائمة سداد اقساط العملاء'!$D$3:$D$9205,'قائمة سداد اقساط العملاء'!$A$3:$A$9205,$C$1,'قائمة سداد اقساط العملاء'!$F$3:$F$9205,B26)) ->  | D26: =IF(B26="","",SUMIFS('قائمة سداد اقساط العملاء'!$E$3:$E$9205,'قائمة سداد اقساط العملاء'!$A$3:$A$9205,$C$1,'قائمة سداد اقساط العملاء'!$F$3:$F$9205,B26)) ->  | E26: =IF(B26="","",SUMIFS('قائمة سداد اقساط العملاء'!$G$3:$G$9205,'قائمة سداد اقساط العملاء'!$A$3:$A$9205,$C$1,'قائمة سداد اقساط العملاء'!$F$3:$F$9205,B26)) ->  | F26: =IF(B26="","",SUM($C$5:C26)) -> 
C27: =IF(B27="","",SUMIFS('قائمة سداد اقساط العملاء'!$D$3:$D$9205,'قائمة سداد اقساط العملاء'!$A$3:$A$9205,$C$1,'قائمة سداد اقساط العملاء'!$F$3:$F$9205,B27)) ->  | D27: =IF(B27="","",SUMIFS('قائمة سداد اقساط العملاء'!$E$3:$E$9205,'قائمة سداد اقساط العملاء'!$A$3:$A$9205,$C$1,'قائمة سداد اقساط العملاء'!$F$3:$F$9205,B27)) ->  | E27: =IF(B27="","",SUMIFS('قائمة سداد اقساط العملاء'!$G$3:$G$9205,'قائمة سداد اقساط العملاء'!$A$3:$A$9205,$C$1,'قائمة سداد اقساط العملاء'!$F$3:$F$9205,B27)) ->  | F27: =IF(B27="","",SUM($C$5:C27)) -> 
C28: =IF(B28="","",SUMIFS('قائمة سداد اقساط العملاء'!$D$3:$D$9205,'قائمة سداد اقساط العملاء'!$A$3:$A$9205,$C$1,'قائمة سداد اقساط العملاء'!$F$3:$F$9205,B28)) ->  | D28: =IF(B28="","",SUMIFS('قائمة سداد اقساط العملاء'!$E$3:$E$9205,'قائمة سداد اقساط العملاء'!$A$3:$A$9205,$C$1,'قائمة سداد اقساط العملاء'!$F$3:$F$9205,B28)) ->  | E28: =IF(B28="","",SUMIFS('قائمة سداد اقساط العملاء'!$G$3:$G$9205,'قائمة سداد اقساط العملاء'!$A$3:$A$9205,$C$1,'قائمة سداد اقساط العملاء'!$F$3:$F$9205,B28)) ->  | F28: =IF(B28="","",SUM($C$5:C28)) -> 
C29: =IF(B29="","",SUMIFS('قائمة سداد اقساط العملاء'!$D$3:$D$9205,'قائمة سداد اقساط العملاء'!$A$3:$A$9205,$C$1,'قائمة سداد اقساط العملاء'!$F$3:$F$9205,B29)) ->  | D29: =IF(B29="","",SUMIFS('قائمة سداد اقساط العملاء'!$E$3:$E$9205,'قائمة سداد اقساط العملاء'!$A$3:$A$9205,$C$1,'قائمة سداد اقساط العملاء'!$F$3:$F$9205,B29)) ->  | E29: =IF(B29="","",SUMIFS('قائمة سداد اقساط العملاء'!$G$3:$G$9205,'قائمة سداد اقساط العملاء'!$A$3:$A$9205,$C$1,'قائمة سداد اقساط العملاء'!$F$3:$F$9205,B29)) ->  | F29: =IF(B29="","",SUM($C$5:C29)) -> 
C30: =IF(B30="","",SUMIFS('قائمة سداد اقساط العملاء'!$D$3:$D$9205,'قائمة سداد اقساط العملاء'!$A$3:$A$9205,$C$1,'قائمة سداد اقساط العملاء'!$F$3:$F$9205,B30)) ->  | D30: =IF(B30="","",SUMIFS('قائمة سداد اقساط العملاء'!$E$3:$E$9205,'قائمة سداد اقساط العملاء'!$A$3:$A$9205,$C$1,'قائمة سداد اقساط العملاء'!$F$3:$F$9205,B30)) ->  | E30: =IF(B30="","",SUMIFS('قائمة سداد اقساط العملاء'!$G$3:$G$9205,'قائمة سداد اقساط العملاء'!$A$3:$A$9205,$C$1,'قائمة سداد اقساط العملاء'!$F$3:$F$9205,B30)) ->  | F30: =IF(B30="","",SUM($C$5:C30)) -> 
C31: =IF(B31="","",SUMIFS('قائمة سداد اقساط العملاء'!$D$3:$D$9205,'قائمة سداد اقساط العملاء'!$A$3:$A$9205,$C$1,'قائمة سداد اقساط العملاء'!$F$3:$F$9205,B31)) ->  | D31: =IF(B31="","",SUMIFS('قائمة سداد اقساط العملاء'!$E$3:$E$9205,'قائمة سداد اقساط العملاء'!$A$3:$A$9205,$C$1,'قائمة سداد اقساط العملاء'!$F$3:$F$9205,B31)) ->  | E31: =IF(B31="","",SUMIFS('قائمة سداد اقساط العملاء'!$G$3:$G$9205,'قائمة سداد اقساط العملاء'!$A$3:$A$9205,$C$1,'قائمة سداد اقساط العملاء'!$F$3:$F$9205,B31)) ->  | F31: =IF(B31="","",SUM($C$5:C31)) -> 
C32: =IF(B32="","",SUMIFS('قائمة سداد اقساط العملاء'!$D$3:$D$9205,'قائمة سداد اقساط العملاء'!$A$3:$A$9205,$C$1,'قائمة سداد اقساط العملاء'!$F$3:$F$9205,B32)) ->  | D32: =IF(B32="","",SUMIFS('قائمة سداد اقساط العملاء'!$E$3:$E$9205,'قائمة سداد اقساط العملاء'!$A$3:$A$9205,$C$1,'قائمة سداد اقساط العملاء'!$F$3:$F$9205,B32)) ->  | E32: =IF(B32="","",SUMIFS('قائمة سداد اقساط العملاء'!$G$3:$G$9205,'قائمة سداد اقساط العملاء'!$A$3:$A$9205,$C$1,'قائمة سداد اقساط العملاء'!$F$3:$F$9205,B32)) ->  | F32: =IF(B32="","",SUM($C$5:C32)) -> 
C33: =IF(B33="","",SUMIFS('قائمة سداد اقساط العملاء'!$D$3:$D$9205,'قائمة سداد اقساط العملاء'!$A$3:$A$9205,$C$1,'قائمة سداد اقساط العملاء'!$F$3:$F$9205,B33)) ->  | D33: =IF(B33="","",SUMIFS('قائمة سداد اقساط العملاء'!$E$3:$E$9205,'قائمة سداد اقساط العملاء'!$A$3:$A$9205,$C$1,'قائمة سداد اقساط العملاء'!$F$3:$F$9205,B33)) ->  | E33: =IF(B33="","",SUMIFS('قائمة سداد اقساط العملاء'!$G$3:$G$9205,'قائمة سداد اقساط العملاء'!$A$3:$A$9205,$C$1,'قائمة سداد اقساط العملاء'!$F$3:$F$9205,B33)) ->  | F33: =IF(B33="","",SUM($C$5:C33)) -> 
C34: =IF(B34="","",SUMIFS('قائمة سداد اقساط العملاء'!$D$3:$D$9205,'قائمة سداد اقساط العملاء'!$A$3:$A$9205,$C$1,'قائمة سداد اقساط العملاء'!$F$3:$F$9205,B34)) ->  | D34: =IF(B34="","",SUMIFS('قائمة سداد اقساط العملاء'!$E$3:$E$9205,'قائمة سداد اقساط العملاء'!$A$3:$A$9205,$C$1,'قائمة سداد اقساط العملاء'!$F$3:$F$9205,B34)) ->  | E34: =IF(B34="","",SUMIFS('قائمة سداد اقساط العملاء'!$G$3:$G$9205,'قائمة سداد اقساط العملاء'!$A$3:$A$9205,$C$1,'قائمة سداد اقساط العملاء'!$F$3:$F$9205,B34)) ->  | F34: =IF(B34="","",SUM($C$5:C34)) -> 
